Workbook

Sheet Sheet1
A1: Patient Number​ | B1: Height | C1: Weight | D1: BMI ≥24 | E1: Age＞50 | F1: Preoperative tumor size | G1: t≤2 | H1: Number of lymph nodes | I1: Lymph nodes status | J1: Menopause status (Menopause == 1, Non-menopause == 0) | K1: ER-positive | L1: PR-positive | M1: HER2 | N1: Ki67 | O1: Ki ≤20 | P1: Preoperative white blood cell count | Q1: Red Blood Cell Count | R1: Blood platelet count | S1: Sll | T1: SII ≤496.92 | U1: PLR | V1: PLR≤152.48 | W1: Lymphocyte | X1: Monocyte Count | Y1: MRR | Z1: MRR≤8.76
A2: 1 | B2: 160 | C2: 100 | D2: 1 | E2: 1 | F2: 2.8 | G2: 1 | H2: 0/9 | I2: 0 | J2: 1 | K2: 0 | L2: 0 | M2: 0 | N2: 60 | O2: 1 | P2: 4.49 | Q2: 4.92 | R2: 191 | S2: 370.9807692 | T2: 0 | U2: =R2*100/P2/W2 -> 136.3428702 | V2: 0 | W2: 31.2 | X2: 5.8 | Y2: =X2*P2/Q2 -> 5.293089431 | Z2: 0
A3: 2 | B3: 159 | C3: 95 | D3: 1 | E3: 1 | F3: 3 | G3: 1 | H3: 0/38 | I3: 0 | J3: 1 | K3: 0 | L3: 0 | M3: 0 | N3: 60 | O3: 1 | P3: 10.35 | Q3: 4.46 | R3: 315 | S3: 1290.483871 | T3: 1 | U3: =R3*100/P3/W3 -> 163.6278635 | V3: 1 | W3: 18.6 | X3: 4.5 | Y3: =X3*P3/Q3 -> 10.44282511 | Z3: 1
A4: 3 | B4: 162 | C4: 91.5 | D4: 1 | E4: 0 | F4: 1.6 | G4: 0 | H4: 0/5 | I4: 0 | J4: 0 | K4: 1 | L4: 1 | M4: 0 | N4: 8 | O4: 0 | P4: 5.6 | Q4: 4.6 | R4: 258 | S4: 495.36 | T4: 0 | U4: =R4*100/P4/W4 -> 153.5714286 | V4: 1 | W4: 30 | X4: 7.6 | Y4: =X4*P4/Q4 -> 9.252173913 | Z4: 1
A5: 4 | B5: 160 | C5: 82.5 | D5: 1 | E5: 1 | F5: 1.3 | G5: 0 | H5: 1/18 | I5: 1 | J5: 1 | K5: 0 | L5: 0 | M5: 1 | N5: 40 | O5: 1 | P5: 5.45 | Q5: 4.61 | R5: 294 | S5: 912.1875 | T5: 1 | U5: =R5*100/P5/W5 -> 240.8256881 | V5: 1 | W5: 22.4 | X5: 6.6 | Y5: =X5*P5/Q5 -> 7.802603037 | Z5: 0
A6: 5 | B6: 163 | C6: 85 | D6: 1 | E6: 0 | F6: 1.3 | G6: 0 | H6: 0/16 | I6: 0 | J6: 0 | K6: 1 | L6: 1 | M6: 1 | N6: 40 | O6: 1 | P6: 7.05 | Q6: 4.21 | R6: 313 | S6: 757.6022727 | T6: 1 | U6: =R6*100/P6/W6 -> 168.1710724 | V6: 1 | W6: 26.4 | X6: 8.4 | Y6: =X6*P6/Q6 -> 14.06650831 | Z6: 1
A7: 6 | B7: 165 | C7: 86 | D7: 1 | E7: 1 | F7: 2.5 | G7: 1 | H7: 0/12 | I7: 0 | J7: 1 | K7: 0 | L7: 0 | M7: 1 | N7: 90 | O7: 1 | P7: 5.4 | Q7: 5.3 | R7: 227 | S7: 327.9552632 | T7: 0 | U7: =R7*100/P7/W7 -> 110.6237817 | V7: 0 | W7: 38 | X7: 4.8 | Y7: =X7*P7/Q7 -> 4.890566038 | Z7: 0
A8: 7 | B8: 160 | C8: 80 | D8: 1 | E8: 1 | F8: 4.5 | G8: 1 | H8: 0/13 | I8: 0 | J8: 1 | K8: 1 | L8: 1 | M8: 0 | N8: 7 | O8: 0 | P8: 5.2 | Q8: 4.6 | R8: 237 | S8: 269.5294118 | T8: 0 | U8: =R8*100/P8/W8 -> 111.7081448 | V8: 0 | W8: 40.8 | X8: 8.5 | Y8: =X8*P8/Q8 -> 9.608695652 | Z8: 1
A9: 8 | B9: 160 | C9: 80 | D9: 1 | E9: 1 | F9: 1 | G9: 0 | H9: 1/10 | I9: 1 | J9: 1 | K9: 1 | L9: 1 | M9: 0 | N9: 25 | O9: 1 | P9: 4.6 | Q9: 4.2 | R9: 212 | S9: 403.1365079 | T9: 0 | U9: =R9*100/P9/W9 -> 146.3077985 | V9: 0 | W9: 31.5 | X9: 6 | Y9: =X9*P9/Q9 -> 6.571428571 | Z9: 0
A10: 9 | B10: 165 | C10: 85 | D10: 1 | E10: 1 | F10: 1.7 | G10: 0 | H10: 10/11 | I10: 1 | J10: 1 | K10: 1 | L10: 1 | M10: 0 | N10: 7 | O10: 0 | P10: 9.81 | Q10: 5.11 | R10: 193 | S10: 724.4773869 | T10: 1 | U10: =R10*100/P10/W10 -> 98.86332785 | V10: 0 | W10: 19.9 | X10: 4.8 | Y10: =X10*P10/Q10 -> 9.214872798 | Z10: 1
A11: 10 | B11: 158 | C11: 77.5 | D11: 1 | E11: 0 | F11: 1.5 | G11: 0 | H11: 0/14 | I11: 0 | J11: 0 | K11: 1 | L11: 1 | M11: 0 | N11: 35 | O11: 1 | P11: 7.19 | Q11: 5.4 | R11: 269 | S11: 727.8185484 | T11: 1 | U11: =R11*100/P11/W11 -> 150.8591682 | V11: 0 | W11: 24.8 | X11: 5.3 | Y11: =X11*P11/Q11 -> 7.056851852 | Z11: 0
A12: 11 | B12: 162 | C12: 80 | D12: 1 | E12: 0 | F12: 1.4 | G12: 0 | H12: 1/9 | I12: 1 | J12: 0 | K12: 1 | L12: 1 | M12: 0 | N12: 40 | O12: 1 | P12: 7.74 | Q12: 4.6 | R12: 285 | S12: 535.5095541 | T12: 1 | U12: =R12*100/P12/W12 -> 117.2665778 | V12: 0 | W12: 31.4 | X12: 5.3 | Y12: =X12*P12/Q12 -> 8.917826087 | Z12: 1
A13: 12 | B13: 156 | C13: 74 | D13: 1 | E13: 1 | F13: 4 | G13: 1 | H13: 2/13 | I13: 1 | J13: 1 | K13: 1 | L13: 1 | M13: 1 | N13: 40 | O13: 1 | P13: 5.82 | Q13: 4.51 | R13: 188 | S13: 235.5773956 | T13: 0 | U13: =R13*100/P13/W13 -> 79.36708968 | V13: 0 | W13: 40.7 | X13: 5.2 | Y13: =X13*P13/Q13 -> 6.710421286 | Z13: 0
A14: 13 | B14: 152 | C14: 70 | D14: 1 | E14: 1 | F14: 1.5 | G14: 0 | H14: 0/15 | I14: 0 | J14: 1 | K14: 1 | L14: 1 | M14: 1 | N14: 15 | O14: 0 | P14: 6.00 | Q14: 4.36 | R14: 233 | S14: 616.7103175 | T14: 1 | U14: =R14*100/P14/W14 -> 154.1005291 | V14: 1 | W14: 25.2 | X14: 7.0 | Y14: =X14*P14/Q14 -> 9.633027523 | Z14: 1
A15: 14 | B15: 158 | C15: 75 | D15: 1 | E15: 0 | F15: 2.2 | G15: 1 | H15: 0/3 | I15: 0 | J15: 0 | K15: 1 | L15: 1 | M15: 1 | N15: 40 | O15: 1 | P15: 6.04 | Q15: 4.29 | R15: 301 | S15: 280.7152174 | T15: 0 | U15: =R15*100/P15/W15 -> 108.3357328 | V15: 0 | W15: 46 | X15: 7 | Y15: =X15*P15/Q15 -> 9.855477855 | Z15: 1
A16: 15 | B16: 161 | C16: 77.5 | D16: 1 | E16: 1 | F16: 2.4 | G16: 1 | H16: 1/15 | I16: 1 | J16: 0 | K16: 1 | L16: 1 | M16: 0 | N16: 20 | O16: 0 | P16: 5.16 | Q16: 4.5 | R16: 242 | S16: 443.4064516 | T16: 0 | U16: =R16*100/P16/W16 -> 151.287822 | V16: 0 | W16: 31.0 | X16: 11.0 | Y16: =X16*P16/Q16 -> 12.61333333 | Z16: 1
A17: 16 | B17: 165 | C17: 81 | D17: 1 | E17: 1 | F17: 1.5 | G17: 0 | H17: 1/23 | I17: 1 | J17: 1 | K17: 1 | L17: 0 | M17: 1 | N17: 70 | O17: 1 | P17: 5.9 | Q17: 5 | R17: 321 | S17: 589.3601286 | T17: 1 | U17: =R17*100/P17/W17 -> 174.9414137 | V17: 1 | W17: 31.1 | X17: 9.6 | Y17: =X17*P17/Q17 -> 11.328 | Z17: 1
A18: 17 | B18: 160 | C18: 76 | D18: 1 | E18: 0 | F18: 2 | G18: 0 | H18: 0/13 | I18: 0 | J18: 0 | K18: 1 | L18: 1 | M18: 1 | N18: 20 | O18: 0 | P18: 6.6 | Q18: 4.5 | R18: 176 | S18: 284.5417867 | T18: 0 | U18: =R18*100/P18/W18 -> 76.84918348 | V18: 0 | W18: 34.7 | X18: 7 | Y18: =X18*P18/Q18 -> 10.26666667 | Z18: 1
A19: 18 | B19: 147 | C19: 64 | D19: 1 | E19: 1 | F19: 1.4 | G19: 0 | H19: 6/18 | I19: 1 | J19: 1 | K19: 1 | L19: 0 | M19: 1 | N19: 20 | O19: 0 | P19: 5.69 | Q19: 4.4 | R19: 152 | S19: 217.852861 | T19: 0 | U19: =R19*100/P19/W19 -> 72.78891693 | V19: 0 | W19: 36.7 | X19: 7.7 | Y19: =X19*P19/Q19 -> 9.9575 | Z19: 1
A20: 19 | B20: 152 | C20: 68 | D20: 1 | E20: 1 | F20: 2 | G20: 0 | H20: 0/16 | I20: 0 | J20: 1 | K20: 1 | L20: 1 | M20: 0 | N20: 50 | O20: 1 | P20: 7.3 | Q20: 4.7 | R20: 324 | S20: 813.0798479 | T20: 1 | U20: =R20*100/P20/W20 -> 168.7587895 | V20: 1 | W20: 26.3 | X20: 6.3 | Y20: =X20*P20/Q20 -> 9.785106383 | Z20: 1
A21: 20 | B21: 171 | C21: 86 | D21: 1 | E21: 0 | F21: 4 | G21: 1 | H21: 1/23 | I21: 1 | J21: 0 | K21: 1 | L21: 0 | M21: 0 | N21: 60 | O21: 1 | P21: 5.7 | Q21: 4.6 | R21: 227 | S21: 714.1460177 | T21: 1 | U21: =R21*100/P21/W21 -> 176.2148735 | V21: 1 | W21: 22.6 | X21: 4.7 | Y21: =X21*P21/Q21 -> 5.823913043 | Z21: 0
A22: 21 | B22: 160 | C22: 75 | D22: 1 | E22: 1 | F22: 2.7 | G22: 1 | H22: 5/20 | I22: 1 | J22: 1 | K22: 1 | L22: 0 | M22: 0 | N22: 80 | O22: 1 | P22: 6.36 | Q22: 4.6 | R22: 234 | S22: 386.3076923 | T22: 0 | U22: =R22*100/P22/W22 -> 108.8534107 | V22: 0 | W22: 33.8 | X22: 5.2 | Y22: =X22*P22/Q22 -> 7.189565217 | Z22: 0
A23: 22 | B23: 157 | C23: 72 | D23: 1 | E23: 0 | F23: 1.5 | G23: 0 | H23: 0/14 | I23: 0 | J23: 0 | K23: 1 | L23: 1 | M23: 1 | N23: 40 | O23: 1 | P23: 5 | Q23: 4.5 | R23: 275 | S23: 312.8378378 | T23: 0 | U23: =R23*100/P23/W23 -> 135.1351351 | V23: 0 | W23: 40.7 | X23: 11 | Y23: =X23*P23/Q23 -> 12.22222222 | Z23: 1
A24: 23 | B24: 155 | C24: 70 | D24: 1 | E24: 0 | F24: 1 | G24: 0 | H24: 0/14 | I24: 0 | J24: 0 | K24: 0 | L24: 0 | M24: 0 | N24: 35 | O24: 1 | P24: 5.6 | Q24: 4.2 | R24: 282 | S24: 628.625 | T24: 1 | U24: =R24*100/P24/W24 -> 174.8511905 | V24: 1 | W24: 28.8 | X24: 6.1 | Y24: =X24*P24/Q24 -> 8.133333333 | Z24: 0
A25: 24 | B25: 153 | C25: 68 | D25: 1 | E25: 1 | F25: 2 | G25: 0 | H25: 0/16 | I25: 0 | J25: 1 | K25: 1 | L25: 1 | M25: 0 | N25: 25 | O25: 1 | P25: 7 | Q25: 3.9 | R25: 239 | S25: 260.1360544 | T25: 0 | U25: =R25*100/P25/W25 -> 77.42144477 | V25: 0 | W25: 44.1 | X25: 6.2 | Y25: =X25*P25/Q25 -> 11.12820513 | Z25: 1
A26: 25 | B26: 158 | C26: 72.5 | D26: 1 | E26: 1 | F26: 1.3 | G26: 0 | H26: 0/21 | I26: 0 | J26: 1 | K26: 1 | L26: 1 | M26: 0 | N26: 30 | O26: 1 | P26: 6.93 | Q26: 4.96 | R26: 222 | S26: 336.9972299 | T26: 0 | U26: =R26*100/P26/W26 -> 88.73859289 | V26: 0 | W26: 36.1 | X26: 7.1 | Y26: =X26*P26/Q26 -> 9.919959677 | Z26: 1
A27: 26 | B27: 158 | C27: 72.5 | D27: 1 | E27: 0 | F27: 3 | G27: 1 | H27: 3/21 | I27: 1 | J27: 0 | K27: 1 | L27: 1 | M27: 0 | N27: 50 | O27: 1 | P27: 5.12 | Q27: 4.37 | R27: 223 | S27: 712 | T27: 1 | U27: =R27*100/P27/W27 -> 195.3125 | V27: 1 | W27: 22.3 | X27: 4.7 | Y27: =X27*P27/Q27 -> 5.506636156 | Z27: 0
A28: 27 | B28: 166 | C28: 80 | D28: 1 | E28: 1 | F28: 5 | G28: 1 | H28: 0/13 | I28: 0 | J28: 1 | K28: 1 | L28: 0 | M28: 1 | N28: 70 | O28: 1 | P28: 6.1 | Q28: 4.3 | R28: 305 | S28: 406.6666667 | T28: 0 | U28: =R28*100/P28/W28 -> 132.2751323 | V28: 0 | W28: 37.8 | X28: 9.4 | Y28: =X28*P28/Q28 -> 13.33488372 | Z28: 1
A29: 28 | B29: 162 | C29: 76 | D29: 1 | E29: 1 | F29: 1.8 | G29: 0 | H29: 1/14 | I29: 1 | J29: 1 | K29: 1 | L29: 0 | M29: 0 | N29: 20 | O29: 0 | P29: 5.31 | Q29: 3.72 | R29: 126 | S29: 91.85046729 | T29: 0 | U29: =R29*100/P29/W29 -> 44.35292254 | V29: 0 | W29: 53.5 | X29: 6.0 | Y29: =X29*P29/Q29 -> 8.564516129 | Z29: 0
A30: 29 | B30: 158 | C30: 72 | D30: 1 | E30: 1 | F30: 2.3 | G30: 1 | H30: 0/8 | I30: 0 | J30: 1 | K30: 0 | L30: 0 | M30: 0 | N30: 85 | O30: 1 | P30: 5.8 | Q30: 4.4 | R30: 179 | S30: 408.4043321 | T30: 0 | U30: =R30*100/P30/W30 -> 111.4154114 | V30: 0 | W30: 27.7 | X30: 6.7 | Y30: =X30*P30/Q30 -> 8.831818182 | Z30: 1
A31: 30 | B31: 158 | C31: 72 | D31: 1 | E31: 0 | F31: 2.3 | G31: 1 | H31: 2/16 | I31: 1 | J31: 0 | K31: 1 | L31: 1 | M31: 0 | N31: 15 | O31: 0 | P31: 7.00 | Q31: 4.9 | R31: 271 | S31: 508.2305296 | T31: 1 | U31: =R31*100/P31/W31 -> 120.6052514 | V31: 0 | W31: 32.1 | X31: 5.4 | Y31: =X31*P31/Q31 -> 7.714285714 | Z31: 0
A32: 31 | B32: 156 | C32: 70 | D32: 1 | E32: 1 | F32: 1.8 | G32: 0 | H32: 3/20 | I32: 1 | J32: 1 | K32: 0 | L32: 0 | M32: 1 | N32: 70 | O32: 1 | P32: 5.96 | Q32: 4.99 | R32: 163 | S32: 313.1451104 | T32: 0 | U32: =R32*100/P32/W32 -> 86.27442678 | V32: 0 | W32: 31.7 | X32: 6.4 | Y32: =X32*P32/Q32 -> 7.644088176 | Z32: 0
A33: 32 | B33: 162 | C33: 75 | D33: 1 | E33: 0 | F33: 2 | G33: 0 | H33: 4/11 | I33: 1 | J33: 0 | K33: 0 | L33: 1 | M33: 1 | N33: 35 | O33: 1 | P33: 5.2 | Q33: 4.6 | R33: 237 | S33: 644 | T33: 1 | U33: =R33*100/P33/W33 -> 192.3076923 | V33: 1 | W33: 23.7 | X33: 6.5 | Y33: =X33*P33/Q33 -> 7.347826087 | Z33: 0
A34: 33 | B34: 160 | C34: 73 | D34: 1 | E34: 0 | F34: 0.6 | G34: 0 | H34: 1/14 | I34: 1 | J34: 1 | K34: 1 | L34: 1 | M34: 1 | N34: 10 | O34: 0 | P34: 4.7 | Q34: 4.4 | R34: 282 | S34: 654.9677419 | T34: 1 | U34: =R34*100/P34/W34 -> 215.0537634 | V34: 1 | W34: 27.9 | X34: 5.9 | Y34: =X34*P34/Q34 -> 6.302272727 | Z34: 0
A35: 34 | B35: 155 | C35: 68 | D35: 1 | E35: 1 | F35: 0.8 | G35: 0 | H35: 0/20 | I35: 0 | J35: 1 | K35: 1 | L35: 1 | M35: 0 | N35: 8 | O35: 0 | P35: 7.3 | Q35: 4.4 | R35: 278 | S35: 679.3233083 | T35: 1 | U35: =R35*100/P35/W35 -> 143.1661345 | V35: 0 | W35: 26.6 | X35: 7.3 | Y35: =X35*P35/Q35 -> 12.11136364 | Z35: 1
A36: 35 | B36: 162 | C36: 74 | D36: 1 | E36: 1 | F36: 2.5 | G36: 1 | H36: 0/11 | I36: 0 | J36: 1 | K36: 1 | L36: 1 | M36: 1 | N36: 25 | O36: 1 | P36: 4.69 | Q36: 4.56 | R36: 157 | S36: 284.7687688 | T36: 0 | U36: =R36*100/P36/W36 -> 100.5269662 | V36: 0 | W36: 33.3 | X36: 5.5 | Y36: =X36*P36/Q36 -> 5.656798246 | Z36: 0
A37: 36 | B37: 161 | C37: 73 | D37: 1 | E37: 1 | F37: 3.5 | G37: 1 | H37: 4/11 | I37: 1 | J37: 1 | K37: 0 | L37: 0 | M37: 1 | N37: 70 | O37: 1 | P37: 6 | Q37: 4.2 | R37: 156 | S37: 704.7857143 | T37: 1 | U37: =R37*100/P37/W37 -> 154.7619048 | V37: 1 | W37: 16.8 | X37: 6.3 | Y37: =X37*P37/Q37 -> 9 | Z37: 1
A38: 37 | B38: 160 | C38: 72 | D38: 1 | E38: 1 | F38: 2 | G38: 0 | H38: 3/11 | I38: 1 | J38: 1 | K38: 1 | L38: 1 | M38: 0 | N38: 35 | O38: 1 | P38: 6.71 | Q38: 4.4 | R38: 312 | S38: 816.9638554 | T38: 1 | U38: =R38*100/P38/W38 -> 186.7380102 | V38: 1 | W38: 24.9 | X38: 6.1 | Y38: =X38*P38/Q38 -> 9.3025 | Z38: 1
A39: 38 | B39: 160 | C39: 72 | D39: 1 | E39: 1 | F39: 3.2 | G39: 1 | H39: 0/15 | I39: 0 | J39: 1 | K39: 1 | L39: 1 | M39: 0 | N39: 35 | O39: 1 | P39: 8.18 | Q39: 4.7 | R39: 223 | S39: 1139.777778 | T39: 1 | U39: =R39*100/P39/W39 -> 178.1804816 | V39: 1 | W39: 15.3 | X39: 6.1 | Y39: =X39*P39/Q39 -> 10.61659574 | Z39: 1
A40: 39 | B40: 158 | C40: 70 | D40: 1 | E40: 1 | F40: 3 | G40: 1 | H40: 0/15 | I40: 0 | J40: 1 | K40: 0 | L40: 0 | M40: 0 | N40: 7 | O40: 0 | P40: 5.6 | Q40: 4.6 | R40: 193 | S40: 450.095941 | T40: 0 | U40: =R40*100/P40/W40 -> 127.174486 | V40: 0 | W40: 27.1 | X40: 8.6 | Y40: =X40*P40/Q40 -> 10.46956522 | Z40: 1
A41: 40 | B41: 158 | C41: 70 | D41: 1 | E41: 1 | F41: 1.4 | G41: 0 | H41: 0/9 | I41: 0 | J41: 1 | K41: 1 | L41: 1 | M41: 1 | N41: 10 | O41: 0 | P41: 4.9 | Q41: 4.5 | R41: 283 | S41: 404.4935733 | T41: 0 | U41: =R41*100/P41/W41 -> 148.4706993 | V41: 0 | W41: 38.9 | X41: 4.7 | Y41: =X41*P41/Q41 -> 5.117777778 | Z41: 0
A42: 41 | B42: 158 | C42: 70 | D42: 1 | E42: 1 | F42: 3 | G42: 1 | H42: 9/38 | I42: 1 | J42: 1 | K42: 0 | L42: 0 | M42: 1 | N42: 85 | O42: 1 | P42: 6.64 | Q42: 4.9 | R42: 264 | S42: 947.8243902 | T42: 1 | U42: =R42*100/P42/W42 -> 193.9465178 | V42: 1 | W42: 20.5 | X42: 4.8 | Y42: =X42*P42/Q42 -> 6.504489796 | Z42: 0
A43: 42 | B43: 158 | C43: 70 | D43: 1 | E43: 0 | F43: 2 | G43: 0 | H43: 2/12 | I43: 1 | J43: 1 | K43: 1 | L43: 1 | M43: 1 | N43: 70 | O43: 1 | P43: 4.78 | Q43: 4.5 | R43: 294 | S43: 700.1555556 | T43: 1 | U43: =R43*100/P43/W43 -> 227.8010228 | V43: 1 | W43: 27.0 | X43: 7.3 | Y43: =X43*P43/Q43 -> 7.754222222 | Z43: 0
A44: 43 | B44: 156 | C44: 68 | D44: 1 | E44: 1 | F44: 5 | G44: 1 | H44: 15/16 | I44: 1 | J44: 1 | K44: 1 | L44: 1 | M44: 0 | N44: 50 | O44: 1 | P44: 6.4 | Q44: 4.8 | R44: 243 | S44: 518.5670103 | T44: 1 | U44: =R44*100/P44/W44 -> 130.4768041 | V44: 0 | W44: 29.1 | X44: 7.8 | Y44: =X44*P44/Q44 -> 10.4 | Z44: 1
A45: 44 | B45: 168 | C45: 78 | D45: 1 | E45: 1 | F45: 3.2 | G45: 1 | H45: 0/9 | I45: 0 | J45: 1 | K45: 0 | L45: 0 | M45: 0 | N45: 75 | O45: 1 | P45: 4.1 | Q45: 4.4 | R45: 149 | S45: 196.0106952 | T45: 0 | U45: =R45*100/P45/W45 -> 97.16968827 | V45: 0 | W45: 37.4 | X45: 9.3 | Y45: =X45*P45/Q45 -> 8.665909091 | Z45: 0
A46: 45 | B46: 165 | C46: 75 | D46: 1 | E46: 0 | F46: 2.2 | G46: 1 | H46: 2/11 | I46: 1 | J46: 0 | K46: 1 | L46: 1 | M46: 0 | N46: 40 | O46: 1 | P46: 4.61 | Q46: 4.2 | R46: 280 | S46: 705.3846154 | T46: 1 | U46: =R46*100/P46/W46 -> 233.6058735 | V46: 1 | W46: 26.0 | X46: 4.8 | Y46: =X46*P46/Q46 -> 5.268571429 | Z46: 0
A47: 46 | B47: 163 | C47: 73 | D47: 1 | E47: 1 | F47: 2.5 | G47: 1 | H47: 1/14 | I47: 1 | J47: 1 | K47: 1 | L47: 1 | M47: 0 | N47: 15 | O47: 0 | P47: 5.1 | Q47: 4.4 | R47: 253 | S47: 511.1111111 | T47: 1 | U47: =R47*100/P47/W47 -> 167.0297749 | V47: 1 | W47: 29.7 | X47: 6.7 | Y47: =X47*P47/Q47 -> 7.765909091 | Z47: 0
A48: 47 | B48: 158 | C48: 68.5 | D48: 1 | E48: 1 | F48: 1.8 | G48: 0 | H48: 0/12 | I48: 0 | J48: 1 | K48: 1 | L48: 1 | M48: 0 | N48: 8 | O48: 0 | P48: 7.1 | Q48: 4.4 | R48: 190 | S48: 783.6216216 | T48: 1 | U48: =R48*100/P48/W48 -> 144.6516939 | V48: 0 | W48: 18.5 | X48: 4.6 | Y48: =X48*P48/Q48 -> 7.422727273 | Z48: 0
A49: 48 | B49: 154 | C49: 65 | D49: 1 | E49: 1 | F49: 3.2 | G49: 1 | H49: 0/19 | I49: 0 | J49: 1 | K49: 1 | L49: 1 | M49: 0 | N49: 35 | O49: 1 | P49: 4.6 | Q49: 4.1 | R49: 152 | S49: 300.1025641 | T49: 0 | U49: =R49*100/P49/W49 -> 105.9085842 | V49: 0 | W49: 31.2 | X49: 5 | Y49: =X49*P49/Q49 -> 5.609756098 | Z49: 0
A50: 49 | B50: 160 | C50: 70 | D50: 1 | E50: 1 | F50: 2.5 | G50: 1 | H50: 0/2 | I50: 0 | J50: 1 | K50: 1 | L50: 1 | M50: 1 | N50: 90 | O50: 1 | P50: 6.88 | Q50: 4.45 | R50: 315 | S50: 469.5121951 | T50: 0 | U50: =R50*100/P50/W50 -> 124.0782757 | V50: 0 | W50: 36.9 | X50: 7 | Y50: =X50*P50/Q50 -> 10.82247191 | Z50: 1
A51: 50 | B51: 160 | C51: 70 | D51: 1 | E51: 0 | F51: 2.5 | G51: 1 | H51: 0/8 | I51: 0 | J51: 0 | K51: 1 | L51: 1 | M51: 0 | N51: 20 | O51: 0 | P51: 7.2 | Q51: 4.1 | R51: 313 | S51: 786.1155116 | T51: 1 | U51: =R51*100/P51/W51 -> 143.4726806 | V51: 0 | W51: 30.3 | X51: 8.3 | Y51: =X51*P51/Q51 -> 14.57560976 | Z51: 1
A52: 51 | B52: 159 | C52: 69 | D52: 1 | E52: 0 | F52: 2 | G52: 0 | H52: 3/16 | I52: 1 | J52: 0 | K52: 1 | L52: 1 | M52: 0 | N52: 10 | O52: 0 | P52: 7.68 | Q52: 4.42 | R52: 200 | S52: 543.2 | T52: 1 | U52: =R52*100/P52/W52 -> 104.1666667 | V52: 0 | W52: 25.0 | X52: 6.0 | Y52: =X52*P52/Q52 -> 10.42533937 | Z52: 1
A53: 52 | B53: 158 | C53: 68 | D53: 1 | E53: 1 | F53: 1.8 | G53: 0 | H53: 0/12 | I53: 0 | J53: 1 | K53: 0 | L53: 0 | M53: 1 | N53: 30 | O53: 1 | P53: 4.38 | Q53: 4.47 | R53: 157 | S53: 294.4410774 | T53: 0 | U53: =R53*100/P53/W53 -> 120.6893901 | V53: 0 | W53: 29.7 | X53: 11.6 | Y53: =X53*P53/Q53 -> 11.36644295 | Z53: 1
A54: 53 | B54: 157 | C54: 67 | D54: 1 | E54: 1 | F54: 1.8 | G54: 0 | H54: 0/12 | I54: 0 | J54: 1 | K54: 0 | L54: 0 | M54: 0 | N54: 80 | O54: 1 | P54: 7 | Q54: 4.6 | R54: 236 | S54: 1729.982609 | T54: 1 | U54: =R54*100/P54/W54 -> 293.1677019 | V54: 1 | W54: 11.5 | X54: 4 | Y54: =X54*P54/Q54 -> 6.086956522 | Z54: 0
A55: 54 | B55: 164 | C55: 73 | D55: 1 | E55: 1 | F55: 1 | G55: 0 | H55: 0/14 | I55: 0 | J55: 1 | K55: 0 | L55: 0 | M55: 1 | N55: 40 | O55: 1 | P55: 6.4 | Q55: 4.7 | R55: 213 | S55: 388.4117647 | T55: 0 | U55: =R55*100/P55/W55 -> 103.0379257 | V55: 0 | W55: 32.3 | X55: 6.6 | Y55: =X55*P55/Q55 -> 8.987234043 | Z55: 1
A56: 55 | B56: 172 | C56: 80 | D56: 1 | E56: 1 | F56: 3 | G56: 1 | H56: 5/16 | I56: 1 | J56: 1 | K56: 1 | L56: 1 | M56: 1 | N56: 70 | O56: 1 | P56: 6.4 | Q56: 5 | R56: 217 | S56: 702.7149533 | T56: 1 | U56: =R56*100/P56/W56 -> 158.4404206 | V56: 1 | W56: 21.4 | X56: 8.2 | Y56: =X56*P56/Q56 -> 10.496 | Z56: 1
A57: 56 | B57: 160 | C57: 69 | D57: 1 | E57: 1 | F57: 4 | G57: 1 | H57: 9/17 | I57: 1 | J57: 1 | K57: 0 | L57: 0 | M57: 0 | N57: 70 | O57: 1 | P57: 5.8 | Q57: 4.6 | R57: 351 | S57: 590.0431034 | T57: 1 | U57: =R57*100/P57/W57 -> 173.9001189 | V57: 1 | W57: 34.8 | X57: 5.9 | Y57: =X57*P57/Q57 -> 7.439130435 | Z57: 0
A58: 57 | B58: 148 | C58: 59 | D58: 1 | E58: 1 | F58: 1.8 | G58: 0 | H58: 0/22 | I58: 0 | J58: 1 | K58: 1 | L58: 1 | M58: 0 | N58: 20 | O58: 1 | P58: 5.70 | Q58: 4.5 | R58: 268 | S58: 507.1384615 | T58: 1 | U58: =R58*100/P58/W58 -> 144.6693657 | V58: 0 | W58: 32.5 | X58: 5.4 | Y58: =X58*P58/Q58 -> 6.84 | Z58: 0
A59: 58 | B59: 152 | C59: 62 | D59: 1 | E59: 0 | F59: 0.8 | G59: 0 | H59: 1/18 | I59: 1 | J59: 0 | K59: 1 | L59: 1 | M59: 1 | N59: 40 | O59: 1 | P59: 8.7 | Q59: 5 | R59: 353 | S59: 1196.553991 | T59: 1 | U59: =R59*100/P59/W59 -> 190.4916087 | V59: 1 | W59: 21.3 | X59: 5.4 | Y59: =X59*P59/Q59 -> 9.396 | Z59: 1
A60: 59 | B60: 156 | C60: 65 | D60: 1 | E60: 1 | F60: 5 | G60: 1 | H60: 0/6 | I60: 0 | J60: 1 | K60: 1 | L60: 1 | M60: 0 | N60: 10 | O60: 0 | P60: 5.4 | Q60: 4.48 | R60: 163 | S60: 304.096875 | T60: 0 | U60: =R60*100/P60/W60 -> 94.3287037 | V60: 0 | W60: 32 | X60: 4.8 | Y60: =X60*P60/Q60 -> 5.785714286 | Z60: 0
A61: 60 | B61: 156 | C61: 65 | D61: 1 | E61: 1 | F61: 4.5 | G61: 1 | H61: 8/21 | I61: 1 | J61: 1 | K61: 1 | L61: 0 | M61: 1 | N61: 60 | O61: 1 | P61: 4 | Q61: 4.5 | R61: 259 | S61: 361.7885117 | T61: 0 | U61: =R61*100/P61/W61 -> 169.0600522 | V61: 1 | W61: 38.3 | X61: 7 | Y61: =X61*P61/Q61 -> 6.222222222 | Z61: 0
A62: 61 | B62: 150 | C62: 60 | D62: 1 | E62: 1 | F62: 1.7 | G62: 0 | H62: 0/20 | I62: 0 | J62: 1 | K62: 1 | L62: 0 | M62: 1 | N62: 20 | O62: 0 | P62: 5.6 | Q62: 4.5 | R62: 233 | S62: 277.0358852 | T62: 0 | U62: =R62*100/P62/W62 -> 99.53861928 | V62: 0 | W62: 41.8 | X62: 7.4 | Y62: =X62*P62/Q62 -> 9.208888889 | Z62: 1
A63: 62 | B63: 155 | C63: 64 | D63: 1 | E63: 1 | F63: 2 | G63: 0 | H63: 2/23 | I63: 1 | J63: 1 | K63: 1 | L63: 1 | M63: 0 | N63: 30 | O63: 1 | P63: 5.9 | Q63: 4.4 | R63: 256 | S63: 677.1612903 | T63: 1 | U63: =R63*100/P63/W63 -> 174.958994 | V63: 1 | W63: 24.8 | X63: 8.1 | Y63: =X63*P63/Q63 -> 10.86136364 | Z63: 1
A64: 63 | B64: 155 | C64: 64 | D64: 1 | E64: 1 | F64: 4 | G64: 1 | H64: 0/15 | I64: 0 | J64: 1 | K64: 1 | L64: 0 | M64: 0 | N64: 10 | O64: 0 | P64: 4.6 | Q64: 4.5 | R64: 252 | S64: 439.6756757 | T64: 0 | U64: =R64*100/P64/W64 -> 164.5123384 | V64: 1 | W64: 33.3 | X64: 5.6 | Y64: =X64*P64/Q64 -> 5.724444444 | Z64: 0
A65: 64 | B65: 161 | C65: 69 | D65: 1 | E65: 1 | F65: 1.5 | G65: 0 | H65: 0/3 | I65: 0 | J65: 1 | K65: 1 | L65: 1 | M65: 0 | N65: 30 | O65: 1 | P65: 5.32 | Q65: 4.27 | R65: 231 | S65: 341.7792916 | T65: 0 | U65: =R65*100/P65/W65 -> 118.3134949 | V65: 0 | W65: 36.7 | X65: 5.6 | Y65: =X65*P65/Q65 -> 6.97704918 | Z65: 0
A66: 65 | B66: 168 | C66: 75 | D66: 1 | E66: 1 | F66: 2.5 | G66: 1 | H66: 2/11 | I66: 1 | J66: 1 | K66: 1 | L66: 0 | M66: 0 | N66: 30 | O66: 1 | P66: 7.1 | Q66: 4.8 | R66: 286 | S66: 275.6875 | T66: 0 | U66: =R66*100/P66/W66 -> 96.83098592 | V66: 0 | W66: 41.6 | X66: 9.6 | Y66: =X66*P66/Q66 -> 14.2 | Z66: 1
A67: 66 | B67: 168 | C67: 75 | D67: 1 | E67: 1 | F67: 4.5 | G67: 1 | H67: 4/25 | I67: 1 | J67: 1 | K67: 0 | L67: 0 | M67: 1 | N67: 75 | O67: 1 | P67: 5.1 | Q67: 4.4 | R67: 162 | S67: 248.7857143 | T67: 0 | U67: =R67*100/P67/W67 -> 87.2656755 | V67: 0 | W67: 36.4 | X67: 6.5 | Y67: =X67*P67/Q67 -> 7.534090909 | Z67: 0
A68: 67 | B68: 160 | C68: 68 | D68: 1 | E68: 0 | F68: 1 | G68: 0 | H68: 9/18 | I68: 1 | J68: 0 | K68: 1 | L68: 1 | M68: 0 | N68: 60 | O68: 1 | P68: 5.1 | Q68: 3.9 | R68: 274 | S68: 586.4726027 | T68: 1 | U68: =R68*100/P68/W68 -> 183.9914048 | V68: 1 | W68: 29.2 | X68: 6.3 | Y68: =X68*P68/Q68 -> 8.238461538 | Z68: 0
A69: 68 | B69: 166 | C69: 73 | D69: 1 | E69: 0 | F69: 0.6 | G69: 0 | H69: 0/31 | I69: 0 | J69: 1 | K69: 1 | L69: 1 | M69: 0 | N69: 5 | O69: 0 | P69: 4.9 | Q69: 3.7 | R69: 231 | S69: 453.5016722 | T69: 0 | U69: =R69*100/P69/W69 -> 157.6684185 | V69: 1 | W69: 29.9 | X69: 8.6 | Y69: =X69*P69/Q69 -> 11.38918919 | Z69: 1
A70: 69 | B70: 165 | C70: 72 | D70: 1 | E70: 1 | F70: 3 | G70: 1 | H70: 0/2 | I70: 0 | J70: 1 | K70: 1 | L70: 0 | M70: 1 | N70: 5 | O70: 0 | P70: 6.5 | Q70: 5.1 | R70: 279 | S70: 1204.699422 | T70: 1 | U70: =R70*100/P70/W70 -> 248.1102712 | V70: 1 | W70: 17.3 | X70: 6.9 | Y70: =X70*P70/Q70 -> 8.794117647 | Z70: 1
A71: 70 | B71: 158 | C71: 66 | D71: 1 | E71: 1 | F71: 2.5 | G71: 1 | H71: 0/10 | I71: 0 | J71: 1 | K71: 0 | L71: 0 | M71: 0 | N71: 40 | O71: 1 | P71: 9.2 | Q71: 4.6 | R71: 263 | S71: 405.1820728 | T71: 0 | U71: =R71*100/P71/W71 -> 80.07550846 | V71: 0 | W71: 35.7 | X71: 7.5 | Y71: =X71*P71/Q71 -> 15 | Z71: 1
A72: 71 | B72: 158 | C72: 66 | D72: 1 | E72: 1 | F72: 1.2 | G72: 0 | H72: 0/13 | I72: 0 | J72: 1 | K72: 1 | L72: 1 | M72: 0 | N72: 15 | O72: 0 | P72: 3.85 | Q72: 4.51 | R72: 234 | S72: 318.4137931 | T72: 0 | U72: =R72*100/P72/W72 -> 161.2180923 | V72: 1 | W72: 37.7 | X72: 9.4 | Y72: =X72*P72/Q72 -> 8.024390244 | Z72: 0
A73: 72 | B73: 158 | C73: 66 | D73: 1 | E73: 0 | F73: 3 | G73: 1 | H73: 0/21 | I73: 0 | J73: 0 | K73: 1 | L73: 0 | M73: 1 | N73: 60 | O73: 1 | P73: 6.4 | Q73: 4.7 | R73: 309 | S73: 954.2246696 | T73: 1 | U73: =R73*100/P73/W73 -> 212.6927313 | V73: 1 | W73: 22.7 | X73: 6.4 | Y73: =X73*P73/Q73 -> 8.714893617 | Z73: 0
A74: 73 | B74: 160 | C74: 67.5 | D74: 1 | E74: 1 | F74: 2 | G74: 0 | H74: 2/18 | I74: 1 | J74: 1 | K74: 0 | L74: 0 | M74: 1 | N74: 90 | O74: 1 | P74: 4.29 | Q74: 4 | R74: 236 | S74: 689.7682403 | T74: 1 | U74: =R74*100/P74/W74 -> 236.1015237 | V74: 1 | W74: 23.3 | X74: 8.2 | Y74: =X74*P74/Q74 -> 8.7945 | Z74: 1
A75: 74 | B75: 163 | C75: 70 | D75: 1 | E75: 1 | F75: 4 | G75: 1 | H75: 24/24 | I75: 1 | J75: 1 | K75: 0 | L75: 0 | M75: 1 | N75: 70 | O75: 1 | P75: 7 | Q75: 4.7 | R75: 287 | S75: 823.0495868 | T75: 1 | U75: =R75*100/P75/W75 -> 169.4214876 | V75: 1 | W75: 24.2 | X75: 5 | Y75: =X75*P75/Q75 -> 7.446808511 | Z75: 0
A76: 75 | B76: 162 | C76: 69 | D76: 1 | E76: 1 | F76: 2 | G76: 0 | H76: 1/13 | I76: 1 | J76: 1 | K76: 1 | L76: 1 | M76: 1 | N76: 40 | O76: 1 | P76: 5.10 | Q76: 4.5 | R76: 262 | S76: 575.4965517 | T76: 1 | U76: =R76*100/P76/W76 -> 177.1467208 | V76: 1 | W76: 29.0 | X76: 5.5 | Y76: =X76*P76/Q76 -> 6.233333333 | Z76: 0
A77: 76 | B77: 151 | C77: 59.8 | D77: 1 | E77: 1 | F77: 2 | G77: 0 | H77: 0/15 | I77: 0 | J77: 1 | K77: 0 | L77: 0 | M77: 0 | N77: 60 | O77: 1 | P77: 5.28 | Q77: 3.9 | R77: 218 | S77: 904.8172043 | T77: 1 | U77: =R77*100/P77/W77 -> 221.9778429 | V77: 1 | W77: 18.6 | X77: 3.8 | Y77: =X77*P77/Q77 -> 5.144615385 | Z77: 0
A78: 77 | B78: 155 | C78: 63 | D78: 1 | E78: 0 | F78: 0.5 | G78: 0 | H78: 0/15 | I78: 0 | J78: 0 | K78: 1 | L78: 1 | M78: 0 | N78: 30 | O78: 1 | P78: 4.22 | Q78: 4.52 | R78: 222 | S78: 470.551495 | T78: 0 | U78: =R78*100/P78/W78 -> 174.772874 | V78: 1 | W78: 30.1 | X78: 5.2 | Y78: =X78*P78/Q78 -> 4.854867257 | Z78: 0
A79: 78 | B79: 150 | C79: 59 | D79: 1 | E79: 1 | F79: 2.5 | G79: 1 | H79: 9/26 | I79: 1 | J79: 1 | K79: 1 | L79: 1 | M79: 0 | N79: 10 | O79: 0 | P79: 6.58 | Q79: 5.5 | R79: 254 | S79: 630.3308824 | T79: 1 | U79: =R79*100/P79/W79 -> 141.9184695 | V79: 0 | W79: 27.2 | X79: 4.9 | Y79: =X79*P79/Q79 -> 5.862181818 | Z79: 0
A80: 79 | B80: 160 | C80: 67 | D80: 1 | E80: 0 | F80: 1 | G80: 0 | H80: 0/22 | I80: 0 | J80: 0 | K80: 1 | L80: 1 | M80: 1 | N80: 70 | O80: 1 | P80: 6.73 | Q80: 4.3 | R80: 288 | S80: 611.628866 | T80: 1 | U80: =R80*100/P80/W80 -> 147.0565708 | V80: 0 | W80: 29.1 | X80: 3.9 | Y80: =X80*P80/Q80 -> 6.103953488 | Z80: 0
A81: 80 | B81: 153 | C81: 61 | D81: 1 | E81: 1 | F81: 1.4 | G81: 0 | H81: 3/24 | I81: 1 | J81: 1 | K81: 1 | L81: 1 | M81: 0 | N81: 4 | O81: 0 | P81: 5.52 | Q81: 4.3 | R81: 237 | S81: 325.0106101 | T81: 0 | U81: =R81*100/P81/W81 -> 113.885365 | V81: 0 | W81: 37.7 | X81: 7.4 | Y81: =X81*P81/Q81 -> 9.499534884 | Z81: 1
A82: 81 | B82: 158 | C82: 65 | D82: 1 | E82: 1 | F82: 2.7 | G82: 1 | H82: 0/20 | I82: 0 | J82: 1 | K82: 1 | L82: 1 | M82: 0 | N82: 40 | O82: 1 | P82: 5.97 | Q82: 4.2 | R82: 241 | S82: 890.7061856 | T82: 1 | U82: =R82*100/P82/W82 -> 208.085099 | V82: 1 | W82: 19.4 | X82: 7.2 | Y82: =X82*P82/Q82 -> 10.23428571 | Z82: 1
A83: 82 | B83: 158 | C83: 65 | D83: 1 | E83: 1 | F83: 1.5 | G83: 0 | H83: 0/12 | I83: 0 | J83: 1 | K83: 0 | L83: 0 | M83: 1 | N83: 70 | O83: 1 | P83: 6.2 | Q83: 3.8 | R83: 193 | S83: 298.6772334 | T83: 0 | U83: =R83*100/P83/W83 -> 89.70902668 | V83: 0 | W83: 34.7 | X83: 6.9 | Y83: =X83*P83/Q83 -> 11.25789474 | Z83: 1
A84: 83 | B84: 158 | C84: 65 | D84: 1 | E84: 1 | F84: 2.5 | G84: 1 | H84: 1/18 | I84: 1 | J84: 1 | K84: 1 | L84: 1 | M84: 0 | N84: 35 | O84: 1 | P84: 5.76 | Q84: 4.33 | R84: 162 | S84: 318.8242812 | T84: 0 | U84: =R84*100/P84/W84 -> 89.85623003 | V84: 0 | W84: 31.3 | X84: 5.9 | Y84: =X84*P84/Q84 -> 7.848498845 | Z84: 0
A85: 84 | B85: 160 | C85: 66.5 | D85: 1 | E85: 0 | F85: 1.5 | G85: 0 | H85: 5/15 | I85: 1 | J85: 0 | K85: 1 | L85: 0 | M85: 1 | N85: 25 | O85: 1 | P85: 5.3 | Q85: 4.4 | R85: 254 | S85: 711.6198347 | T85: 1 | U85: =R85*100/P85/W85 -> 198.0352409 | V85: 1 | W85: 24.2 | X85: 5.7 | Y85: =X85*P85/Q85 -> 6.865909091 | Z85: 0
A86: 85 | B86: 152 | C86: 60 | D86: 1 | E86: 1 | F86: 1.8 | G86: 0 | H86: 0/5 | I86: 0 | J86: 1 | K86: 1 | L86: 1 | M86: 0 | N86: 40 | O86: 1 | P86: 5.34 | Q86: 4.66 | R86: 230 | S86: 340.1322751 | T86: 0 | U86: =R86*100/P86/W86 -> 113.9448705 | V86: 0 | W86: 37.8 | X86: 5.2 | Y86: =X86*P86/Q86 -> 5.958798283 | Z86: 0
A87: 86 | B87: 170 | C87: 75 | D87: 1 | E87: 1 | F87: 1.2 | G87: 0 | H87: 6/24 | I87: 1 | J87: 1 | K87: 1 | L87: 1 | M87: 0 | N87: 5 | O87: 0 | P87: 4.5 | Q87: 4.3 | R87: 221 | S87: 681.4166667 | T87: 1 | U87: =R87*100/P87/W87 -> 227.3662551 | V87: 1 | W87: 21.6 | X87: 9.1 | Y87: =X87*P87/Q87 -> 9.523255814 | Z87: 1
A88: 87 | B88: 162 | C88: 68 | D88: 1 | E88: 1 | F88: 3 | G88: 1 | H88: 5/36 | I88: 1 | J88: 1 | K88: 1 | L88: 1 | M88: 0 | N88: 40 | O88: 1 | P88: 5.62 | Q88: 4.4 | R88: 291 | S88: 343.9090909 | T88: 0 | U88: =R88*100/P88/W88 -> 120.6978075 | V88: 0 | W88: 42.9 | X88: 4.8 | Y88: =X88*P88/Q88 -> 6.130909091 | Z88: 0
A89: 88 | B89: 156 | C89: 63 | D89: 1 | E89: 1 | F89: 2.2 | G89: 1 | H89: 4/14 | I89: 1 | J89: 1 | K89: 1 | L89: 1 | M89: 0 | N89: 10 | O89: 0 | P89: 4.7 | Q89: 4.7 | R89: 285 | S89: 556.875 | T89: 1 | U89: =R89*100/P89/W89 -> 199.4680851 | V89: 1 | W89: 30.4 | X89: 7.9 | Y89: =X89*P89/Q89 -> 7.9 | Z89: 0
A90: 89 | B90: 167 | C90: 72 | D90: 1 | E90: 1 | F90: 4 | G90: 1 | H90: 20/28 | I90: 1 | J90: 1 | K90: 1 | L90: 0 | M90: 1 | N90: 35 | O90: 1 | P90: 5.6 | Q90: 4.3 | R90: 296 | S90: 448.4848485 | T90: 0 | U90: =R90*100/P90/W90 -> 145.6119638 | V90: 0 | W90: 36.3 | X90: 5.5 | Y90: =X90*P90/Q90 -> 7.162790698 | Z90: 0
A91: 90 | B91: 155 | C91: 62 | D91: 1 | E91: 0 | F91: 0.7 | G91: 0 | H91: 0/7 | I91: 0 | J91: 0 | K91: 1 | L91: 1 | M91: 0 | N91: 15 | O91: 0 | P91: 8 | Q91: 4.8 | R91: 219 | S91: 348.2966102 | T91: 0 | U91: =R91*100/P91/W91 -> 77.33050847 | V91: 0 | W91: 35.4 | X91: 7.7 | Y91: =X91*P91/Q91 -> 12.83333333 | Z91: 1
A92: 91 | B92: 159 | C92: 65.2 | D92: 1 | E92: 1 | F92: 1.5 | G92: 0 | H92: 0/7 | I92: 0 | J92: 1 | K92: 0 | L92: 0 | M92: 1 | N92: 45 | O92: 1 | P92: 5.13 | Q92: 4.18 | R92: 222 | S92: 240.3348214 | T92: 0 | U92: =R92*100/P92/W92 -> 96.59565581 | V92: 0 | W92: 44.8 | X92: 5.3 | Y92: =X92*P92/Q92 -> 6.504545455 | Z92: 0
A93: 92 | B93: 160 | C93: 66 | D93: 1 | E93: 0 | F93: 1.8 | G93: 0 | H93: 9/19 | I93: 1 | J93: 1 | K93: 1 | L93: 1 | M93: 0 | N93: 8 | O93: 0 | P93: 6.5 | Q93: 4.3 | R93: 358 | S93: 803.3170732 | T93: 1 | U93: =R93*100/P93/W93 -> 191.9056553 | V93: 1 | W93: 28.7 | X93: 5.1 | Y93: =X93*P93/Q93 -> 7.709302326 | Z93: 0
A94: 93 | B94: 165 | C94: 70 | D94: 1 | E94: 1 | F94: 2 | G94: 0 | H94: 1/18 | I94: 1 | J94: 1 | K94: 1 | L94: 1 | M94: 0 | N94: 10 | O94: 0 | P94: 5.5 | Q94: 5.1 | R94: 232 | S94: 322.3896104 | T94: 0 | U94: =R94*100/P94/W94 -> 109.5631641 | V94: 0 | W94: 38.5 | X94: 5.1 | Y94: =X94*P94/Q94 -> 5.5 | Z94: 0
A95: 94 | B95: 153 | C95: 60 | D95: 1 | E95: 1 | F95: 1.5 | G95: 0 | H95: 1/15 | I95: 1 | J95: 1 | K95: 1 | L95: 0 | M95: 0 | N95: 70 | O95: 1 | P95: 6.07 | Q95: 4.0 | R95: 265 | S95: 636 | T95: 1 | U95: =R95*100/P95/W95 -> 158.7539314 | V95: 1 | W95: 27.5 | X95: 5.9 | Y95: =X95*P95/Q95 -> 8.95325 | Z95: 1
A96: 95 | B96: 153 | C96: 60 | D96: 1 | E96: 0 | F96: 1.5 | G96: 0 | H96: 0/16 | I96: 0 | J96: 0 | K96: 1 | L96: 1 | M96: 1 | N96: 40 | O96: 1 | P96: 6.82 | Q96: 4.3 | R96: 264 | S96: 637.5111111 | T96: 1 | U96: =R96*100/P96/W96 -> 143.3691756 | V96: 0 | W96: 27 | X96: 5 | Y96: =X96*P96/Q96 -> 7.930232558 | Z96: 0
A97: 96 | B97: 153 | C97: 60 | D97: 1 | E97: 1 | F97: 2.5 | G97: 1 | H97: 17/17 | I97: 1 | J97: 1 | K97: 1 | L97: 1 | M97: 0 | N97: 20 | O97: 0 | P97: 4.18 | Q97: 3.9 | R97: 236 | S97: 299.7506494 | T97: 0 | U97: =R97*100/P97/W97 -> 146.6476108 | V97: 0 | W97: 38.5 | X97: 8.1 | Y97: =X97*P97/Q97 -> 8.681538462 | Z97: 0
A98: 97 | B98: 152 | C98: 59 | D98: 1 | E98: 1 | F98: 2.5 | G98: 1 | H98: 2/19 | I98: 1 | J98: 1 | K98: 1 | L98: 1 | M98: 0 | N98: 20 | O98: 0 | P98: 4.3 | Q98: 4 | R98: 157 | S98: 167.1759259 | T98: 0 | U98: =R98*100/P98/W98 -> 84.51765719 | V98: 0 | W98: 43.2 | X98: 7.5 | Y98: =X98*P98/Q98 -> 8.0625 | Z98: 0
A99: 98 | B99: 147 | C99: 55 | D99: 1 | E99: 1 | F99: 1.4 | G99: 0 | H99: 0/9 | I99: 0 | J99: 1 | K99: 0 | L99: 0 | M99: 0 | N99: 15 | O99: 0 | P99: 8.10 | Q99: 4.7 | R99: 286 | S99: 597.5695364 | T99: 1 | U99: =R99*100/P99/W99 -> 116.916033 | V99: 0 | W99: 30.2 | X99: 5.7 | Y99: =X99*P99/Q99 -> 9.823404255 | Z99: 1
A100: 99 | B100: 160 | C100: 65 | D100: 1 | E100: 0 | F100: 1.4 | G100: 0 | H100: 0/17 | I100: 0 | J100: 1 | K100: 1 | L100: 1 | M100: 0 | N100: 15 | O100: 0 | P100: 7 | Q100: 4.3 | R100: 239 | S100: 567.5163636 | T100: 1 | U100: =R100*100/P100/W100 -> 124.1558442 | V100: 0 | W100: 27.5 | X100: 5.6 | Y100: =X100*P100/Q100 -> 9.11627907 | Z100: 1
A101: 100 | B101: 160 | C101: 65 | D101: 1 | E101: 0 | F101: 3 | G101: 1 | H101: 0/20 | I101: 0 | J101: 0 | K101: 1 | L101: 1 | M101: 0 | N101: 30 | O101: 1 | P101: 4.5 | Q101: 4.85 | R101: 242 | S101: 449.4285714 | T101: 0 | U101: =R101*100/P101/W101 -> 167.0117322 | V101: 1 | W101: 32.2 | X101: 5.6 | Y101: =X101*P101/Q101 -> 5.195876289 | Z101: 0
A102: 101 | B102: 160 | C102: 65 | D102: 1 | E102: 1 | F102: 2 | G102: 0 | H102: 0/13 | I102: 0 | J102: 1 | K102: 1 | L102: 0 | M102: 0 | N102: 15 | O102: 0 | P102: 6.24 | Q102: 4.43 | R102: 214 | S102: 494.7801418 | T102: 0 | U102: =R102*100/P102/W102 -> 121.6130205 | V102: 0 | W102: 28.2 | X102: 5.3 | Y102: =X102*P102/Q102 -> 7.465462754 | Z102: 0
A103: 102 | B103: 158 | C103: 63 | D103: 1 | E103: 1 | F103: 1.5 | G103: 0 | H103: 0/11 | I103: 0 | J103: 1 | K103: 1 | L103: 1 | M103: 1 | N103: 15 | O103: 0 | P103: 4.78 | Q103: 4.38 | R103: 154 | S103: 306.4651163 | T103: 0 | U103: =R103*100/P103/W103 -> 107.035127 | V103: 0 | W103: 30.1 | X103: 7.5 | Y103: =X103*P103/Q103 -> 8.184931507 | Z103: 0
A104: 103 | B104: 163 | C104: 67 | D104: 1 | E104: 1 | F104: 1.2 | G104: 0 | H104: 0/3 | I104: 0 | J104: 1 | K104: 1 | L104: 1 | M104: 0 | N104: 10 | O104: 0 | P104: 6.30 | Q104: 4.59 | R104: 256 | S104: 532.9836066 | T104: 1 | U104: =R104*100/P104/W104 -> 133.229248 | V104: 0 | W104: 30.5 | X104: 5.2 | Y104: =X104*P104/Q104 -> 7.137254902 | Z104: 0
A105: 104 | B105: 155 | C105: 60.5 | D105: 1 | E105: 0 | F105: 1.5 | G105: 0 | H105: 0/19 | I105: 0 | J105: 0 | K105: 1 | L105: 1 | M105: 1 | N105: 25 | O105: 1 | P105: 6.4 | Q105: 5 | R105: 224 | S105: 766.3157895 | T105: 1 | U105: =R105*100/P105/W105 -> 167.4641148 | V105: 1 | W105: 20.9 | X105: 5.5 | Y105: =X105*P105/Q105 -> 7.04 | Z105: 0
A106: 105 | B106: 167 | C106: 70 | D106: 1 | E106: 0 | F106: 2.2 | G106: 1 | H106: 12/18 | I106: 1 | J106: 0 | K106: 1 | L106: 1 | M106: 0 | N106: 45 | O106: 1 | P106: 7.25 | Q106: 4.49 | R106: 311 | S106: 809.0956175 | T106: 1 | U106: =R106*100/P106/W106 -> 170.9025965 | V106: 1 | W106: 25.1 | X106: 7.9 | Y106: =X106*P106/Q106 -> 12.75612472 | Z106: 1
A107: 106 | B107: 170 | C107: 72.5 | D107: 1 | E107: 1 | F107: 2.5 | G107: 1 | H107: 0/12 | I107: 0 | J107: 1 | K107: 0 | L107: 0 | M107: 1 | N107: 40 | O107: 1 | P107: 6.4 | Q107: 4.4 | R107: 271 | S107: 911.8020833 | T107: 1 | U107: =R107*100/P107/W107 -> 220.5403646 | V107: 1 | W107: 19.2 | X107: 9.1 | Y107: =X107*P107/Q107 -> 13.23636364 | Z107: 1
A108: 107 | B108: 161 | C108: 65 | D108: 1 | E108: 1 | F108: 1 | G108: 0 | H108: 0/10 | I108: 0 | J108: 1 | K108: 1 | L108: 0 | M108: 1 | N108: 60 | O108: 1 | P108: 5.4 | Q108: 4.6 | R108: 284 | S108: 619.5479452 | T108: 1 | U108: =R108*100/P108/W108 -> 180.1116185 | V108: 1 | W108: 29.2 | X108: 6.1 | Y108: =X108*P108/Q108 -> 7.160869565 | Z108: 0
A109: 108 | B109: 156 | C109: 61 | D109: 1 | E109: 1 | F109: 2.8 | G109: 1 | H109: 0/1 | I109: 0 | J109: 1 | K109: 0 | L109: 0 | M109: 0 | N109: 50 | O109: 1 | P109: 7.27 | Q109: 4.42 | R109: 365 | S109: 903.6142322 | T109: 1 | U109: =R109*100/P109/W109 -> 188.0386793 | V109: 1 | W109: 26.7 | X109: 5.8 | Y109: =X109*P109/Q109 -> 9.539819005 | Z109: 1
A110: 109 | B110: 158 | C110: 62.5 | D110: 1 | E110: 1 | F110: 2.8 | G110: 1 | H110: 0/17 | I110: 0 | J110: 1 | K110: 0 | L110: 1 | M110: 1 | N110: 70 | O110: 1 | P110: 6.45 | Q110: 4.7 | R110: 146 | S110: 682.8447205 | T110: 1 | U110: =R110*100/P110/W110 -> 140.5941547 | V110: 0 | W110: 16.1 | X110: 8.1 | Y110: =X110*P110/Q110 -> 11.11595745 | Z110: 1
A111: 110 | B111: 160 | C111: 64 | D111: 1 | E111: 1 | F111: 2.5 | G111: 1 | H111: 0/15 | I111: 0 | J111: 1 | K111: 1 | L111: 0 | M111: 1 | N111: 40 | O111: 1 | P111: 7.59 | Q111: 4.5 | R111: 277 | S111: 272.5931818 | T111: 0 | U111: =R111*100/P111/W111 -> 82.94406516 | V111: 0 | W111: 44.0 | X111: 7.4 | Y111: =X111*P111/Q111 -> 12.48133333 | Z111: 1
A112: 111 | B112: 160 | C112: 64 | D112: 1 | E112: 1 | F112: 1.1 | G112: 0 | H112: 0/16 | I112: 0 | J112: 1 | K112: 1 | L112: 1 | M112: 1 | N112: 25 | O112: 1 | P112: 4.13 | Q112: 4.41 | R112: 211 | S112: 440.1271478 | T112: 0 | U112: =R112*100/P112/W112 -> 175.5655958 | V112: 1 | W112: 29.1 | X112: 7.5 | Y112: =X112*P112/Q112 -> 7.023809524 | Z112: 0
A113: 112 | B113: 157 | C113: 61.5 | D113: 1 | E113: 1 | F113: 1.8 | G113: 0 | H113: 0/13 | I113: 0 | J113: 0 | K113: 1 | L113: 1 | M113: 1 | N113: 30 | O113: 1 | P113: 9.16 | Q113: 4.8 | R113: 305 | S113: 669.8490566 | T113: 1 | U113: =R113*100/P113/W113 -> 125.6488424 | V113: 0 | W113: 26.5 | X113: 6.5 | Y113: =X113*P113/Q113 -> 12.40416667 | Z113: 1
A114: 113 | B114: 163 | C114: 66 | D114: 1 | E114: 0 | F114: 2 | G114: 0 | H114: 0/25 | I114: 0 | J114: 1 | K114: 0 | L114: 0 | M114: 0 | N114: 85 | O114: 1 | P114: 6.2 | Q114: 4.3 | R114: 199 | S114: 287.5040431 | T114: 0 | U114: =R114*100/P114/W114 -> 86.51421616 | V114: 0 | W114: 37.1 | X114: 7.4 | Y114: =X114*P114/Q114 -> 10.66976744 | Z114: 1
A115: 114 | B115: 162 | C115: 65 | D115: 1 | E115: 1 | F115: 0.8 | G115: 0 | H115: 0/11 | I115: 0 | J115: 1 | K115: 1 | L115: 1 | M115: 1 | N115: 5 | O115: 0 | P115: 4.5 | Q115: 5 | R115: 137 | S115: 235.0447284 | T115: 0 | U115: =R115*100/P115/W115 -> 97.26659567 | V115: 0 | W115: 31.3 | X115: 8.5 | Y115: =X115*P115/Q115 -> 7.65 | Z115: 0
A116: 115 | B116: 162 | C116: 65 | D116: 1 | E116: 0 | F116: 2.7 | G116: 1 | H116: 2/19 | I116: 1 | J116: 0 | K116: 1 | L116: 1 | M116: 0 | N116: 45 | O116: 1 | P116: 6.95 | Q116: 4.0 | R116: 340 | S116: 1402.5 | T116: 1 | U116: =R116*100/P116/W116 -> 265.8742571 | V116: 1 | W116: 18.4 | X116: 4.7 | Y116: =X116*P116/Q116 -> 8.16625 | Z116: 0
A117: 116 | B117: 156 | C117: 60 | D117: 1 | E117: 1 | F117: 1 | G117: 0 | H117: 0/19 | I117: 0 | J117: 1 | K117: 1 | L117: 1 | M117: 0 | N117: 15 | O117: 0 | P117: 5.6 | Q117: 4.2 | R117: 276 | S117: 585.3103448 | T117: 1 | U117: =R117*100/P117/W117 -> 169.9507389 | V117: 1 | W117: 29 | X117: 8.9 | Y117: =X117*P117/Q117 -> 11.86666667 | Z117: 1
A118: 117 | B118: 160 | C118: 63 | D118: 1 | E118: 1 | F118: 0.5 | G118: 0 | H118: 0/12 | I118: 0 | J118: 1 | K118: 1 | L118: 0 | M118: 0 | N118: 7 | O118: 0 | P118: 10.4 | Q118: 4.2 | R118: 319 | S118: 2528.149533 | T118: 1 | U118: =R118*100/P118/W118 -> 286.6642703 | V118: 1 | W118: 10.7 | X118: 4.1 | Y118: =X118*P118/Q118 -> 10.15238095 | Z118: 1
A119: 118 | B119: 160 | C119: 63 | D119: 1 | E119: 1 | F119: 1.2 | G119: 0 | H119: 0./16 | I119: 0 | J119: 1 | K119: 1 | L119: 1 | M119: 0 | N119: 8 | O119: 0 | P119: 7.1 | Q119: 4.7 | R119: 229 | S119: 549.0985401 | T119: 1 | U119: =R119*100/P119/W119 -> 117.7135808 | V119: 0 | W119: 27.4 | X119: 5.2 | Y119: =X119*P119/Q119 -> 7.855319149 | Z119: 0
A120: 119 | B120: 155 | C120: 59 | D120: 1 | E120: 1 | F120: 1.2 | G120: 0 | H120: 1/14 | I120: 1 | J120: 1 | K120: 0 | L120: 0 | M120: 1 | N120: 70 | O120: 1 | P120: 8.1 | Q120: 4.9 | R120: 278 | S120: 518.4785276 | T120: 1 | U120: =R120*100/P120/W120 -> 105.2791032 | V120: 0 | W120: 32.6 | X120: 5.7 | Y120: =X120*P120/Q120 -> 9.42244898 | Z120: 1
A121: 120 | B121: 164 | C121: 66 | D121: 1 | E121: 1 | F121: 3 | G121: 1 | H121: 4/17 | I121: 1 | J121: 1 | K121: 1 | L121: 1 | M121: 0 | N121: 40 | O121: 1 | P121: 8.1 | Q121: 5.4 | R121: 269 | S121: 708.2265625 | T121: 1 | U121: =R121*100/P121/W121 -> 129.7260802 | V121: 0 | W121: 25.6 | X121: 5.3 | Y121: =X121*P121/Q121 -> 7.95 | Z121: 0
A122: 121 | B122: 159 | C122: 62 | D122: 1 | E122: 1 | F122: 2.5 | G122: 1 | H122: 12/22 | I122: 1 | J122: 1 | K122: 1 | L122: 1 | M122: 1 | N122: 80 | O122: 1 | P122: 6.7 | Q122: 4.3 | R122: 269 | S122: 839.7478261 | T122: 1 | U122: =R122*100/P122/W122 -> 174.5619727 | V122: 1 | W122: 23 | X122: 4.5 | Y122: =X122*P122/Q122 -> 7.011627907 | Z122: 0
A123: 122 | B123: 163 | C123: 65 | D123: 1 | E123: 1 | F123: 1.8 | G123: 0 | H123: 0/15 | I123: 0 | J123: 1 | K123: 1 | L123: 1 | M123: 0 | N123: 15 | O123: 0 | P123: 7.3 | Q123: 4.7 | R123: 312 | S123: 1018.547085 | T123: 1 | U123: =R123*100/P123/W123 -> 191.6579642 | V123: 1 | W123: 22.3 | X123: 4.7 | Y123: =X123*P123/Q123 -> 7.3 | Z123: 0
A124: 123 | B124: 163 | C124: 65 | D124: 1 | E124: 1 | F124: 2.5 | G124: 1 | H124: 0/4 | I124: 0 | J124: 1 | K124: 1 | L124: 1 | M124: 0 | N124: 40 | O124: 1 | P124: 4.49 | Q124: 4.13 | R124: 189 | S124: 478.3604651 | T124: 0 | U124: =R124*100/P124/W124 -> 163.1532605 | V124: 1 | W124: 25.8 | X124: 6.9 | Y124: =X124*P124/Q124 -> 7.501452785 | Z124: 0
A125: 124 | B125: 150 | C125: 55 | D125: 1 | E125: 1 | F125: 3.5 | G125: 1 | H125: 0/18 | I125: 0 | J125: 1 | K125: 0 | L125: 0 | M125: 1 | N125: 65 | O125: 1 | P125: 5.5 | Q125: 4.2 | R125: 101 | S125: 147.9513514 | T125: 0 | U125: =R125*100/P125/W125 -> 49.63144963 | V125: 0 | W125: 37 | X125: 6.7 | Y125: =X125*P125/Q125 -> 8.773809524 | Z125: 1
A126: 125 | B126: 150 | C126: 55 | D126: 1 | E126: 1 | F126: 1 | G126: 0 | H126: 1/30 | I126: 1 | J126: 1 | K126: 1 | L126: 1 | M126: 1 | N126: 70 | O126: 1 | P126: 6.87 | Q126: 4.3 | R126: 261 | S126: 680.78327 | T126: 1 | U126: =R126*100/P126/W126 -> 144.4534843 | V126: 0 | W126: 26.3 | X126: 4.1 | Y126: =X126*P126/Q126 -> 6.550465116 | Z126: 0
A127: 126 | B127: 157 | C127: 60 | D127: 1 | E127: 1 | F127: 1.3 | G127: 0 | H127: 1/18 | I127: 1 | J127: 1 | K127: 1 | L127: 1 | M127: 0 | N127: 10 | O127: 0 | P127: 8.17 | Q127: 4.06 | R127: 381 | S127: 1570.566667 | T127: 1 | U127: =R127*100/P127/W127 -> 259.0779274 | V127: 1 | W127: 18.0 | X127: 6.0 | Y127: =X127*P127/Q127 -> 12.07389163 | Z127: 1
A128: 127 | B128: 156 | C128: 59 | D128: 1 | E128: 1 | F128: 1.6 | G128: 0 | H128: 18/19 | I128: 1 | J128: 1 | K128: 0 | L128: 0 | M128: 1 | N128: 65 | O128: 1 | P128: 11.27 | Q128: 5.1 | R128: 281 | S128: 833.4340426 | T128: 1 | U128: =R128*100/P128/W128 -> 106.0997942 | V128: 0 | W128: 23.5 | X128: 6.1 | Y128: =X128*P128/Q128 -> 13.47980392 | Z128: 1
A129: 128 | B129: 156 | C129: 59 | D129: 1 | E129: 0 | F129: 0.9 | G129: 0 | H129: 0/10 | I129: 0 | J129: 0 | K129: 1 | L129: 1 | M129: 0 | N129: 12 | O129: 0 | P129: 6.77 | Q129: 5.06 | R129: 393 | S129: 1173.939914 | T129: 1 | U129: =R129*100/P129/W129 -> 249.1425818 | V129: 1 | W129: 23.3 | X129: 5.3 | Y129: =X129*P129/Q129 -> 7.091106719 | Z129: 0
A130: 129 | B130: 160 | C130: 62 | D130: 1 | E130: 1 | F130: 2.5 | G130: 1 | H130: 1/9 | I130: 1 | J130: 1 | K130: 0 | L130: 0 | M130: 1 | N130: 50 | O130: 1 | P130: 9.71 | Q130: 4.18 | R130: 296 | S130: 1020.346154 | T130: 1 | U130: =R130*100/P130/W130 -> 146.5578706 | V130: 0 | W130: 20.8 | X130: 6.5 | Y130: =X130*P130/Q130 -> 15.0992823 | Z130: 1
A131: 130 | B131: 160 | C131: 62 | D131: 1 | E131: 1 | F131: 2.5 | G131: 1 | H131: 3/33 | I131: 1 | J131: 1 | K131: 1 | L131: 1 | M131: 0 | N131: 15 | O131: 0 | P131: 7 | Q131: 5.5 | R131: 317 | S131: 1206.911458 | T131: 1 | U131: =R131*100/P131/W131 -> 235.8630952 | V131: 1 | W131: 19.2 | X131: 5.3 | Y131: =X131*P131/Q131 -> 6.745454545 | Z131: 0
A132: 131 | B132: 158 | C132: 60 | D132: 1 | E132: 1 | F132: 1.5 | G132: 0 | H132: 0/15 | I132: 0 | J132: 1 | K132: 1 | L132: 1 | M132: 0 | N132: 55 | O132: 1 | P132: 5.7 | Q132: 4.6 | R132: 217 | S132: 430.4309211 | T132: 0 | U132: =R132*100/P132/W132 -> 125.2308403 | V132: 0 | W132: 30.4 | X132: 7.6 | Y132: =X132*P132/Q132 -> 9.417391304 | Z132: 1
A133: 132 | B133: 158 | C133: 60 | D133: 1 | E133: 1 | F133: 1.2 | G133: 0 | H133: 21/24 | I133: 1 | J133: 1 | K133: 1 | L133: 1 | M133: 0 | N133: 30 | O133: 1 | P133: 5.3 | Q133: 4 | R133: 207 | S133: 399.747541 | T133: 0 | U133: =R133*100/P133/W133 -> 128.0544386 | V133: 0 | W133: 30.5 | X133: 7.9 | Y133: =X133*P133/Q133 -> 10.4675 | Z133: 1
A134: 133 | B134: 158 | C134: 60 | D134: 1 | E134: 1 | F134: 3 | G134: 1 | H134: 2/22 | I134: 1 | J134: 1 | K134: 1 | L134: 1 | M134: 0 | N134: 15 | O134: 0 | P134: 9.5 | Q134: 4.7 | R134: 332 | S134: 940.6666667 | T134: 1 | U134: =R134*100/P134/W134 -> 142.0624733 | V134: 0 | W134: 24.6 | X134: 5.2 | Y134: =X134*P134/Q134 -> 10.5106383 | Z134: 1
A135: 134 | B135: 158 | C135: 60 | D135: 1 | E135: 0 | F135: 2 | G135: 0 | H135: 1/26 | I135: 1 | J135: 0 | K135: 0 | L135: 0 | M135: 1 | N135: 30 | O135: 1 | P135: 6.51 | Q135: 4.0 | R135: 293 | S135: 427.4258242 | T135: 0 | U135: =R135*100/P135/W135 -> 123.6474739 | V135: 0 | W135: 36.4 | X135: 7.4 | Y135: =X135*P135/Q135 -> 12.0435 | Z135: 1
A136: 135 | B136: 162 | C136: 63 | D136: 1 | E136: 0 | F136: 4.5 | G136: 1 | H136: 1/20 | I136: 1 | J136: 0 | K136: 0 | L136: 1 | M136: 0 | N136: 90 | O136: 1 | P136: 8.3 | Q136: 3.7 | R136: 169 | S136: 804.8625 | T136: 1 | U136: =R136*100/P136/W136 -> 127.2590361 | V136: 0 | W136: 16 | X136: 6.8 | Y136: =X136*P136/Q136 -> 15.25405405 | Z136: 1
A137: 136 | B137: 153 | C137: 56 | D137: 0 | E137: 1 | F137: 0.9 | G137: 0 | H137: 0/24 | I137: 0 | J137: 1 | K137: 0 | L137: 0 | M137: 0 | N137: 40 | O137: 1 | P137: 5.5 | Q137: 3.9 | R137: 380 | S137: 953.6679537 | T137: 1 | U137: =R137*100/P137/W137 -> 266.7602668 | V137: 1 | W137: 25.9 | X137: 6.9 | Y137: =X137*P137/Q137 -> 9.730769231 | Z137: 1
A138: 137 | B138: 165 | C138: 65 | D138: 0 | E138: 0 | F138: 0.2 | G138: 0 | H138: 0/18 | I138: 0 | J138: 0 | K138: 1 | L138: 0 | M138: 0 | N138: 3 | O138: 0 | P138: 4.3 | Q138: 4.6 | R138: 247 | S138: 807.4103774 | T138: 1 | U138: =R138*100/P138/W138 -> 270.952172 | V138: 1 | W138: 21.2 | X138: 6 | Y138: =X138*P138/Q138 -> 5.608695652 | Z138: 0
A139: 138 | B139: 156 | C139: 58 | D139: 0 | E139: 0 | F139: 2.9 | G139: 1 | H139: 0/20 | I139: 0 | J139: 0 | K139: 1 | L139: 1 | M139: 0 | N139: 15 | O139: 0 | P139: 5.23 | Q139: 4.03 | R139: 201 | S139: 313.9213483 | T139: 0 | U139: =R139*100/P139/W139 -> 107.9553999 | V139: 0 | W139: 35.6 | X139: 7.3 | Y139: =X139*P139/Q139 -> 9.47369727 | Z139: 1
A140: 139 | B140: 160 | C140: 61 | D140: 0 | E140: 1 | F140: 2 | G140: 0 | H140: 0/23 | I140: 0 | J140: 1 | K140: 0 | L140: 0 | M140: 1 | N140: 55 | O140: 1 | P140: 6.8 | Q140: 4.5 | R140: 228 | S140: 456.7402597 | T140: 0 | U140: =R140*100/P140/W140 -> 108.8617265 | V140: 0 | W140: 30.8 | X140: 5.9 | Y140: =X140*P140/Q140 -> 8.915555556 | Z140: 1
A141: 140 | B141: 160 | C141: 61 | D141: 0 | E141: 0 | F141: 2 | G141: 0 | H141: 0/19 | I141: 0 | J141: 0 | K141: 1 | L141: 1 | M141: 0 | N141: 60 | O141: 1 | P141: 7.4 | Q141: 4.2 | R141: 87 | S141: 387.9875776 | T141: 0 | U141: =R141*100/P141/W141 -> 73.02333389 | V141: 0 | W141: 16.1 | X141: 7.7 | Y141: =X141*P141/Q141 -> 13.56666667 | Z141: 1
A142: 141 | B142: 162 | C142: 62.5 | D142: 0 | E142: 0 | F142: 1.2 | G142: 0 | H142: 0/10 | I142: 0 | J142: 0 | K142: 1 | L142: 1 | M142: 0 | N142: 60 | O142: 1 | P142: 5.4 | Q142: 4.2 | R142: 246 | S142: 461.4509804 | T142: 0 | U142: =R142*100/P142/W142 -> 148.8743646 | V142: 0 | W142: 30.6 | X142: 11.2 | Y142: =X142*P142/Q142 -> 14.4 | Z142: 1
A143: 142 | B143: 162 | C143: 62.5 | D143: 0 | E143: 1 | F143: 0.7 | G143: 0 | H143: 0/15 | I143: 0 | J143: 1 | K143: 1 | L143: 0 | M143: 1 | N143: 7 | O143: 0 | P143: 3.3 | Q143: 4.1 | R143: 180 | S143: 320.238806 | T143: 0 | U143: =R143*100/P143/W143 -> 162.8222524 | V143: 1 | W143: 33.5 | X143: 5.7 | Y143: =X143*P143/Q143 -> 4.587804878 | Z143: 0
A144: 143 | B144: 162 | C144: 62.5 | D144: 0 | E144: 1 | F144: 2 | G144: 0 | H144: 3/17 | I144: 1 | J144: 0 | K144: 0 | L144: 0 | M144: 1 | N144: 40 | O144: 1 | P144: 5.11 | Q144: 4.4 | R144: 326 | S144: 899.0873016 | T144: 1 | U144: =R144*100/P144/W144 -> 253.160625 | V144: 1 | W144: 25.2 | X144: 4.5 | Y144: =X144*P144/Q144 -> 5.226136364 | Z144: 0
A145: 144 | B145: 152 | C145: 55 | D145: 0 | E145: 0 | F145: 2.5 | G145: 1 | H145: 1/12 | I145: 1 | J145: 0 | K145: 1 | L145: 1 | M145: 0 | N145: 40 | O145: 1 | P145: 7.6 | Q145: 4 | R145: 237 | S145: 613.4653846 | T145: 1 | U145: =R145*100/P145/W145 -> 119.9392713 | V145: 0 | W145: 26 | X145: 5.4 | Y145: =X145*P145/Q145 -> 10.26 | Z145: 1
A146: 145 | B146: 164 | C146: 64 | D146: 0 | E146: 0 | F146: 2.2 | G146: 1 | H146: 0/18 | I146: 0 | J146: 0 | K146: 1 | L146: 1 | M146: 1 | N146: 55 | O146: 1 | P146: 8.03 | Q146: 4.13 | R146: 329 | S146: 1184.4 | T146: 1 | U146: =R146*100/P146/W146 -> 204.856787 | V146: 1 | W146: 20.0 | X146: 6.6 | Y146: =X146*P146/Q146 -> 12.83244552 | Z146: 1
A147: 146 | B147: 164 | C147: 64 | D147: 0 | E147: 1 | F147: 2.5 | G147: 1 | H147: 0/16 | I147: 0 | J147: 1 | K147: 1 | L147: 1 | M147: 0 | N147: 20 | O147: 0 | P147: 5.28 | Q147: 4.39 | R147: 222 | S147: 456.7932203 | T147: 0 | U147: =R147*100/P147/W147 -> 142.5269646 | V147: 0 | W147: 29.5 | X147: 6.6 | Y147: =X147*P147/Q147 -> 7.938041002 | Z147: 0
A148: 147 | B148: 155 | C148: 57 | D148: 0 | E148: 1 | F148: 2.5 | G148: 1 | H148: 2/18 | I148: 1 | J148: 1 | K148: 1 | L148: 1 | M148: 1 | N148: 60 | O148: 1 | P148: 5.4 | Q148: 3.9 | R148: 226 | S148: 406.8 | T148: 0 | U148: =R148*100/P148/W148 -> 126.8237935 | V148: 0 | W148: 33 | X148: 5.9 | Y148: =X148*P148/Q148 -> 8.169230769 | Z148: 0
A149: 148 | B149: 158 | C149: 59 | D149: 0 | E149: 1 | F149: 0.8 | G149: 0 | H149: 0/8 | I149: 0 | J149: 1 | K149: 1 | L149: 1 | M149: 0 | N149: 8 | O149: 0 | P149: 4.6 | Q149: 4.7 | R149: 186 | S149: 256.6989796 | T149: 0 | U149: =R149*100/P149/W149 -> 103.1499556 | V149: 0 | W149: 39.2 | X149: 5 | Y149: =X149*P149/Q149 -> 4.893617021 | Z149: 0
A150: 149 | B150: 162 | C150: 62 | D150: 0 | E150: 0 | F150: 1.5 | G150: 0 | H150: 0/11 | I150: 0 | J150: 1 | K150: 1 | L150: 1 | M150: 1 | N150: 30 | O150: 1 | P150: 4.9 | Q150: 4.5 | R150: 174 | S150: 454.2168675 | T150: 0 | U150: =R150*100/P150/W150 -> 142.6112614 | V150: 0 | W150: 24.9 | X150: 8.5 | Y150: =X150*P150/Q150 -> 9.255555556 | Z150: 1
A151: 150 | B151: 166 | C151: 65 | D151: 0 | E151: 1 | F151: 3 | G151: 1 | H151: 0/23 | I151: 0 | J151: 1 | K151: 0 | L151: 0 | M151: 1 | N151: 15 | O151: 0 | P151: 6.6 | Q151: 4.4 | R151: 238 | S151: 973.8702703 | T151: 1 | U151: =R151*100/P151/W151 -> 194.9221949 | V151: 1 | W151: 18.5 | X151: 4.9 | Y151: =X151*P151/Q151 -> 7.35 | Z151: 0
A152: 151 | B152: 150 | C152: 53 | D152: 0 | E152: 1 | F152: 2 | G152: 0 | H152: 3/15 | I152: 1 | J152: 1 | K152: 1 | L152: 1 | M152: 1 | N152: 30 | O152: 1 | P152: 7.05 | Q152: 4.6 | R152: 362 | S152: 656.3975904 | T152: 1 | U152: =R152*100/P152/W152 -> 154.661198 | V152: 1 | W152: 33.2 | X152: 5.1 | Y152: =X152*P152/Q152 -> 7.816304348 | Z152: 0
A153: 152 | B153: 148 | C153: 51.5 | D153: 0 | E153: 1 | F153: 3.5 | G153: 1 | H153: 2/16 | I153: 1 | J153: 1 | K153: 1 | L153: 1 | M153: 0 | N153: 10 | O153: 0 | P153: 4.6 | Q153: 4.7 | R153: 165 | S153: 248.1743869 | T153: 0 | U153: =R153*100/P153/W153 -> 97.73723492 | V153: 0 | W153: 36.7 | X153: 5.2 | Y153: =X153*P153/Q153 -> 5.089361702 | Z153: 0
A154: 153 | B154: 165 | C154: 64 | D154: 0 | E154: 0 | F154: 2.3 | G154: 1 | H154: 4/28 | I154: 1 | J154: 0 | K154: 1 | L154: 0 | M154: 1 | N154: 60 | O154: 1 | P154: 9.25 | Q154: 4.2 | R154: 242 | S154: 958.0206186 | T154: 1 | U154: =R154*100/P154/W154 -> 134.856506 | V154: 0 | W154: 19.4 | X154: 3.6 | Y154: =X154*P154/Q154 -> 7.928571429 | Z154: 0
A155: 154 | B155: 153 | C155: 55 | D155: 0 | E155: 0 | F155: 1.5 | G155: 0 | H155: 0/19 | I155: 0 | J155: 0 | K155: 1 | L155: 1 | M155: 1 | N155: 70 | O155: 1 | P155: 6 | Q155: 4.8 | R155: 215 | S155: 559.8269231 | T155: 1 | U155: =R155*100/P155/W155 -> 137.8205128 | V155: 0 | W155: 26 | X155: 5.1 | Y155: =X155*P155/Q155 -> 6.375 | Z155: 0
A156: 155 | B156: 160 | C156: 60 | D156: 0 | E156: 1 | F156: 3 | G156: 1 | H156: 0/21 | I156: 0 | J156: 1 | K156: 0 | L156: 0 | M156: 0 | N156: 20 | O156: 0 | P156: 4.17 | Q156: 3.93 | R156: 113 | S156: 328.9555556 | T156: 0 | U156: =R156*100/P156/W156 -> 120.4369837 | V156: 0 | W156: 22.5 | X156: 8.4 | Y156: =X156*P156/Q156 -> 8.912977099 | Z156: 1
A157: 156 | B157: 160 | C157: 60 | D157: 0 | E157: 1 | F157: 1.2 | G157: 0 | H157: 0/15 | I157: 0 | J157: 1 | K157: 1 | L157: 1 | M157: 1 | N157: 75 | O157: 1 | P157: 8.03 | Q157: 3.73 | R157: 221 | S157: 919.4088398 | T157: 1 | U157: =R157*100/P157/W157 -> 152.0541065 | V157: 0 | W157: 18.1 | X157: 5.5 | Y157: =X157*P157/Q157 -> 11.84048257 | Z157: 1
A158: 157 | B158: 160 | C158: 60 | D158: 0 | E158: 0 | F158: 0.7 | G158: 0 | H158: 0/9 | I158: 0 | J158: 0 | K158: 1 | L158: 1 | M158: 0 | N158: 25 | O158: 1 | P158: 7.38 | Q158: 4.34 | R158: 270 | S158: 834.8684211 | T158: 1 | U158: =R158*100/P158/W158 -> 160.4621309 | V158: 1 | W158: 22.8 | X158: 4.6 | Y158: =X158*P158/Q158 -> 7.822119816 | Z158: 0
A159: 158 | B159: 160 | C159: 60 | D159: 0 | E159: 1 | F159: 2.3 | G159: 1 | H159: 1/15 | I159: 1 | J159: 1 | K159: 1 | L159: 1 | M159: 1 | N159: 8 | O159: 0 | P159: 9.1 | Q159: 4.4 | R159: 259 | S159: 1879.982759 | T159: 1 | U159: =R159*100/P159/W159 -> 245.3580902 | V159: 1 | W159: 11.6 | X159: 3.9 | Y159: =X159*P159/Q159 -> 8.065909091 | Z159: 0
A160: 159 | B160: 159 | C160: 59 | D160: 0 | E160: 0 | F160: 2.5 | G160: 1 | H160: 0/21 | I160: 0 | J160: 0 | K160: 1 | L160: 1 | M160: 1 | N160: 80 | O160: 1 | P160: 6.3 | Q160: 4.9 | R160: 357 | S160: 832.125 | T160: 1 | U160: =R160*100/P160/W160 -> 208.3333333 | V160: 1 | W160: 27.2 | X160: 7.5 | Y160: =X160*P160/Q160 -> 9.642857143 | Z160: 1
A161: 160 | B161: 159 | C161: 59 | D161: 0 | E161: 1 | F161: 0.6 | G161: 0 | H161: 0/15 | I161: 0 | J161: 1 | K161: 1 | L161: 1 | M161: 1 | N161: 10 | O161: 0 | P161: 6.2 | Q161: 4.5 | R161: 233 | S161: 337.8184282 | T161: 0 | U161: =R161*100/P161/W161 -> 101.8445668 | V161: 0 | W161: 36.9 | X161: 7.3 | Y161: =X161*P161/Q161 -> 10.05777778 | Z161: 1
A162: 161 | B162: 163 | C162: 62 | D162: 0 | E162: 0 | F162: 0.8 | G162: 0 | H162: 1/21 | I162: 1 | J162: 0 | K162: 1 | L162: 1 | M162: 1 | N162: 10 | O162: 0 | P162: 5 | Q162: 4.3 | R162: 216 | S162: 555.7944664 | T162: 1 | U162: =R162*100/P162/W162 -> 170.7509881 | V162: 1 | W162: 25.3 | X162: 8 | Y162: =X162*P162/Q162 -> 9.302325581 | Z162: 1
A163: 162 | B163: 155 | C163: 56 | D163: 0 | E163: 1 | F163: 2.5 | G163: 1 | H163: 1/7 | I163: 1 | J163: 1 | K163: 1 | L163: 1 | M163: 1 | N163: 25 | O163: 1 | P163: 6.8 | Q163: 4.1 | R163: 224 | S163: 1052.8 | T163: 1 | U163: =R163*100/P163/W163 -> 205.8823529 | V163: 1 | W163: 16 | X163: 7.3 | Y163: =X163*P163/Q163 -> 12.10731707 | Z163: 1
A164: 163 | B164: 155 | C164: 56 | D164: 0 | E164: 1 | F164: 2.3 | G164: 1 | H164: 1/18 | I164: 1 | J164: 1 | K164: 1 | L164: 1 | M164: 0 | N164: 20 | O164: 0 | P164: 4.3 | Q164: 4.3 | R164: 229 | S164: 589.7413127 | T164: 1 | U164: =R164*100/P164/W164 -> 205.6209033 | V164: 1 | W164: 25.9 | X164: 5.1 | Y164: =X164*P164/Q164 -> 5.1 | Z164: 0
A165: 164 | B165: 158 | C165: 58 | D165: 0 | E165: 1 | F165: 1.2 | G165: 0 | H165: 0/20 | I165: 0 | J165: 1 | K165: 1 | L165: 1 | M165: 0 | N165: 95 | O165: 1 | P165: 4.68 | Q165: 3.9 | R165: 227 | S165: 331.4441489 | T165: 0 | U165: =R165*100/P165/W165 -> 129.0007274 | V165: 0 | W165: 37.6 | X165: 6.2 | Y165: =X165*P165/Q165 -> 7.44 | Z165: 0
A166: 165 | B166: 165 | C166: 63 | D166: 0 | E166: 1 | F166: 1.4 | G166: 0 | H166: 0/10 | I166: 0 | J166: 1 | K166: 1 | L166: 1 | M166: 0 | N166: 15 | O166: 0 | P166: 5.9 | Q166: 4.7 | R166: 267 | S166: 492.9874608 | T166: 0 | U166: =R166*100/P166/W166 -> 141.8628128 | V166: 0 | W166: 31.9 | X166: 6.5 | Y166: =X166*P166/Q166 -> 8.159574468 | Z166: 0
A167: 166 | B167: 159 | C167: 58.5 | D167: 0 | E167: 1 | F167: 4.5 | G167: 1 | H167: 0/12 | I167: 0 | J167: 1 | K167: 1 | L167: 1 | M167: 0 | N167: 8 | O167: 0 | P167: 7.5 | Q167: 3.7 | R167: 212 | S167: 924.0705882 | T167: 1 | U167: =R167*100/P167/W167 -> 166.2745098 | V167: 1 | W167: 17 | X167: 7.8 | Y167: =X167*P167/Q167 -> 15.81081081 | Z167: 1
A168: 167 | B168: 150 | C168: 52 | D168: 0 | E168: 1 | F168: 0.7 | G168: 0 | H168: 0/21 | I168: 0 | J168: 1 | K168: 0 | L168: 0 | M168: 1 | N168: 8 | O168: 0 | P168: 6.57 | Q168: 4.0 | R168: 235 | S168: 166.7318436 | T168: 0 | U168: =R168*100/P168/W168 -> 66.60827813 | V168: 0 | W168: 53.7 | X168: 6.5 | Y168: =X168*P168/Q168 -> 10.67625 | Z168: 1
A169: 168 | B169: 153 | C169: 54 | D169: 0 | E169: 1 | F169: 0.5 | G169: 0 | H169: 0/14 | I169: 0 | J169: 1 | K169: 1 | L169: 0 | M169: 0 | N169: 70 | O169: 1 | P169: 5.41 | Q169: 3.9 | R169: 222 | S169: 373.7218935 | T169: 0 | U169: =R169*100/P169/W169 -> 121.4056809 | V169: 0 | W169: 33.8 | X169: 7.8 | Y169: =X169*P169/Q169 -> 10.82 | Z169: 1
A170: 169 | B170: 164 | C170: 62 | D170: 0 | E170: 1 | F170: 2.5 | G170: 1 | H170: 5/15 | I170: 1 | J170: 1 | K170: 1 | L170: 1 | M170: 1 | N170: 40 | O170: 1 | P170: 7.1 | Q170: 4.4 | R170: 265 | S170: 599.6885813 | T170: 1 | U170: =R170*100/P170/W170 -> 129.148594 | V170: 0 | W170: 28.9 | X170: 4.9 | Y170: =X170*P170/Q170 -> 7.906818182 | Z170: 0
A171: 170 | B171: 160 | C171: 59 | D171: 0 | E171: 0 | F171: 1.8 | G171: 0 | H171: 1/24 | I171: 1 | J171: 0 | K171: 1 | L171: 1 | M171: 0 | N171: 30 | O171: 1 | P171: 6.1 | Q171: 4.7 | R171: 237 | S171: 633.9268293 | T171: 1 | U171: =R171*100/P171/W171 -> 157.9368253 | V171: 1 | W171: 24.6 | X171: 7.7 | Y171: =X171*P171/Q171 -> 9.993617021 | Z171: 1
A172: 171 | B172: 160 | C172: 59 | D172: 0 | E172: 1 | F172: 1.5 | G172: 0 | H172: 0/15 | I172: 0 | J172: 1 | K172: 0 | L172: 0 | M172: 0 | N172: 80 | O172: 1 | P172: 4.4 | Q172: 4.5 | R172: 279 | S172: 754.2924901 | T172: 1 | U172: =R172*100/P172/W172 -> 250.6288178 | V172: 1 | W172: 25.3 | X172: 5.6 | Y172: =X172*P172/Q172 -> 5.475555556 | Z172: 0
A173: 172 | B173: 160 | C173: 59 | D173: 0 | E173: 0 | F173: 2 | G173: 0 | H173: 3/21 | I173: 1 | J173: 1 | K173: 1 | L173: 1 | M173: 0 | N173: 12 | O173: 0 | P173: 2.77 | Q173: 4.3 | R173: 240 | S173: 182.4 | T173: 0 | U173: =R173*100/P173/W173 -> 173.2851986 | V173: 1 | W173: 50.0 | X173: 9.0 | Y173: =X173*P173/Q173 -> 5.797674419 | Z173: 0
A174: 173 | B174: 160 | C174: 59 | D174: 0 | E174: 1 | F174: 0.8 | G174: 0 | H174: 0/19 | I174: 0 | J174: 1 | K174: 0 | L174: 0 | M174: 1 | N174: 5 | O174: 0 | P174: 5.5 | Q174: 4.6 | R174: 221 | S174: 373.7982196 | T174: 0 | U174: =R174*100/P174/W174 -> 119.2338818 | V174: 0 | W174: 33.7 | X174: 6.3 | Y174: =X174*P174/Q174 -> 7.532608696 | Z174: 0
A175: 174 | B175: 158 | C175: 57.5 | D175: 0 | E175: 1 | F175: 2 | G175: 0 | H175: 0/19 | I175: 0 | J175: 1 | K175: 1 | L175: 0 | M175: 1 | N175: 20 | O175: 0 | P175: 5.5 | Q175: 4.6 | R175: 273 | S175: 1259.011765 | T175: 1 | U175: =R175*100/P175/W175 -> 291.9786096 | V175: 1 | W175: 17 | X175: 4.2 | Y175: =X175*P175/Q175 -> 5.02173913 | Z175: 0
A176: 175 | B176: 168 | C176: 65 | D176: 0 | E176: 1 | F176: 2.5 | G176: 1 | H176: 1/19 | I176: 1 | J176: 0 | K176: 1 | L176: 1 | M176: 1 | N176: 30 | O176: 1 | P176: 5.5 | Q176: 4.9 | R176: 270 | S176: 663.7090909 | T176: 1 | U176: =R176*100/P176/W176 -> 178.5123967 | V176: 1 | W176: 27.5 | X176: 4.5 | Y176: =X176*P176/Q176 -> 5.051020408 | Z176: 0
A177: 176 | B177: 163 | C177: 61 | D177: 0 | E177: 1 | F177: 1.6 | G177: 0 | H177: 1/12 | I177: 1 | J177: 1 | K177: 0 | L177: 0 | M177: 0 | N177: 90 | O177: 1 | P177: 2.5 | Q177: 4.7 | R177: 189 | S177: 220.8850856 | T177: 0 | U177: =R177*100/P177/W177 -> 184.8410758 | V177: 1 | W177: 40.9 | X177: 9.7 | Y177: =X177*P177/Q177 -> 5.159574468 | Z177: 0
A178: 177 | B178: 152 | C178: 53 | D178: 0 | E178: 0 | F178: 2.8 | G178: 1 | H178: 0/15 | I178: 0 | J178: 1 | K178: 1 | L178: 1 | M178: 0 | N178: 10 | O178: 0 | P178: 8.68 | Q178: 4.47 | R178: 299 | S178: 929.6419214 | T178: 1 | U178: =R178*100/P178/W178 -> 150.4236009 | V178: 0 | W178: 22.9 | X178: 5.0 | Y178: =X178*P178/Q178 -> 9.70917226 | Z178: 1
A179: 178 | B179: 155 | C179: 55 | D179: 0 | E179: 0 | F179: 2.5 | G179: 1 | H179: 5/22 | I179: 1 | J179: 0 | K179: 1 | L179: 1 | M179: 1 | N179: 40 | O179: 1 | P179: 5.79 | Q179: 4.64 | R179: 255 | S179: 569.3229167 | T179: 1 | U179: =R179*100/P179/W179 -> 152.9217041 | V179: 1 | W179: 28.8 | X179: 5.9 | Y179: =X179*P179/Q179 -> 7.362284483 | Z179: 0
A180: 179 | B180: 164 | C180: 61.5 | D180: 0 | E180: 1 | F180: 1.2 | G180: 0 | H180: 2/24 | I180: 1 | J180: 1 | K180: 1 | L180: 1 | M180: 0 | N180: 12 | O180: 0 | P180: 4.73 | Q180: 4.55 | R180: 189 | S180: 548.8117155 | T180: 1 | U180: =R180*100/P180/W180 -> 167.1870992 | V180: 1 | W180: 23.9 | X180: 5.7 | Y180: =X180*P180/Q180 -> 5.925494505 | Z180: 0
A181: 180 | B181: 162 | C181: 60 | D181: 0 | E181: 0 | F181: 2.5 | G181: 1 | H181: 0/20 | I181: 0 | J181: 0 | K181: 1 | L181: 1 | M181: 0 | N181: 10 | O181: 0 | P181: 5.99 | Q181: 4.0 | R181: 249 | S181: 828.4485981 | T181: 1 | U181: =R181*100/P181/W181 -> 194.2489819 | V181: 1 | W181: 21.4 | X181: 6.7 | Y181: =X181*P181/Q181 -> 10.03325 | Z181: 1
A182: 181 | B182: 162 | C182: 60 | D182: 0 | E182: 0 | F182: 1.1 | G182: 0 | H182: 0/6 | I182: 0 | J182: 0 | K182: 1 | L182: 1 | M182: 0 | N182: 35 | O182: 1 | P182: 5.42 | Q182: 3.62 | R182: 358 | S182: 655.0157729 | T182: 1 | U182: =R182*100/P182/W182 -> 208.3648597 | V182: 1 | W182: 31.7 | X182: 7.7 | Y182: =X182*P182/Q182 -> 11.52872928 | Z182: 1
A183: 182 | B183: 160 | C183: 58.5 | D183: 0 | E183: 1 | F183: 0.9 | G183: 0 | H183: 1/12 | I183: 1 | J183: 1 | K183: 0 | L183: 0 | M183: 1 | N183: 60 | O183: 1 | P183: 4.06 | Q183: 3.89 | R183: 220 | S183: 315.9891599 | T183: 0 | U183: =R183*100/P183/W183 -> 146.8487591 | V183: 0 | W183: 36.9 | X183: 7.6 | Y183: =X183*P183/Q183 -> 7.932133676 | Z183: 0
A184: 183 | B184: 158 | C184: 57 | D184: 0 | E184: 1 | F184: 2 | G184: 0 | H184: 2/19 | I184: 1 | J184: 1 | K184: 1 | L184: 1 | M184: 1 | N184: 30 | O184: 1 | P184: 3.4 | Q184: 4 | R184: 239 | S184: 234.2411504 | T184: 0 | U184: =R184*100/P184/W184 -> 155.5179594 | V184: 1 | W184: 45.2 | X184: 5.8 | Y184: =X184*P184/Q184 -> 4.93 | Z184: 0
A185: 184 | B185: 165 | C185: 62 | D185: 0 | E185: 1 | F185: 2.4 | G185: 1 | H185: 24/29 | I185: 1 | J185: 1 | K185: 1 | L185: 1 | M185: 0 | N185: 17 | O185: 0 | P185: 5.64 | Q185: 5.0 | R185: 259 | S185: 285.7316514 | T185: 0 | U185: =R185*100/P185/W185 -> 105.3256555 | V185: 0 | W185: 43.6 | X185: 5.5 | Y185: =X185*P185/Q185 -> 6.204 | Z185: 0
A186: 185 | B186: 164 | C186: 61 | D186: 0 | E186: 1 | F186: 3.5 | G186: 1 | H186: 1/24 | I186: 1 | J186: 1 | K186: 0 | L186: 0 | M186: 1 | N186: 35 | O186: 1 | P186: 5.74 | Q186: 4.3 | R186: 307 | S186: 1160.120603 | T186: 1 | U186: =R186*100/P186/W186 -> 268.7654299 | V186: 1 | W186: 19.9 | X186: 4.2 | Y186: =X186*P186/Q186 -> 5.606511628 | Z186: 0
A187: 186 | B187: 164 | C187: 61 | D187: 0 | E187: 1 | F187: 2 | G187: 0 | H187: 0/13 | I187: 0 | J187: 1 | K187: 0 | L187: 0 | M187: 0 | N187: 20 | O187: 0 | P187: 6.5 | Q187: 4.9 | R187: 272 | S187: 391.5368421 | T187: 0 | U187: =R187*100/P187/W187 -> 110.1214575 | V187: 0 | W187: 38 | X187: 6 | Y187: =X187*P187/Q187 -> 7.959183673 | Z187: 0
A188: 187 | B188: 160 | C188: 58 | D188: 0 | E188: 1 | F188: 2 | G188: 0 | H188: 0/17 | I188: 0 | J188: 1 | K188: 0 | L188: 0 | M188: 1 | N188: 95 | O188: 1 | P188: 9.32 | Q188: 4.9 | R188: 250 | S188: 590.1785714 | T188: 1 | U188: =R188*100/P188/W188 -> 95.80012262 | V188: 0 | W188: 28.0 | X188: 4.8 | Y188: =X188*P188/Q188 -> 9.129795918 | Z188: 1
A189: 188 | B189: 160 | C189: 58 | D189: 0 | E189: 0 | F189: 1 | G189: 0 | H189: 0/4 | I189: 0 | J189: 0 | K189: 1 | L189: 1 | M189: 0 | N189: 40 | O189: 1 | P189: 5.83 | Q189: 4.59 | R189: 222 | S189: 311.631016 | T189: 0 | U189: =R189*100/P189/W189 -> 101.8152466 | V189: 0 | W189: 37.4 | X189: 7.4 | Y189: =X189*P189/Q189 -> 9.39912854 | Z189: 1
A190: 189 | B190: 160 | C190: 58 | D190: 0 | E190: 1 | F190: 3.4 | G190: 1 | H190: 0/19 | I190: 0 | J190: 1 | K190: 0 | L190: 0 | M190: 1 | N190: 80 | O190: 1 | P190: 5.03 | Q190: 4.0 | R190: 251 | S190: 720.0633484 | T190: 1 | U190: =R190*100/P190/W190 -> 225.7945539 | V190: 1 | W190: 22.1 | X190: 8.3 | Y190: =X190*P190/Q190 -> 10.43725 | Z190: 1
A191: 190 | B191: 160 | C191: 58 | D191: 0 | E191: 1 | F191: 2.5 | G191: 1 | H191: 0/12 | I191: 0 | J191: 1 | K191: 0 | L191: 0 | M191: 0 | N191: 40 | O191: 1 | P191: 6.91 | Q191: 4.63 | R191: 368 | S191: 830.7462687 | T191: 1 | U191: =R191*100/P191/W191 -> 198.7169795 | V191: 1 | W191: 26.8 | X191: 8.8 | Y191: =X191*P191/Q191 -> 13.13347732 | Z191: 1
A192: 191 | B192: 153 | C192: 53 | D192: 0 | E192: 1 | F192: 1.2 | G192: 0 | H192: 0/12 | I192: 0 | J192: 1 | K192: 1 | L192: 1 | M192: 0 | N192: 15 | O192: 0 | P192: 7.7 | Q192: 5.1 | R192: 251 | S192: 570.535461 | T192: 1 | U192: =R192*100/P192/W192 -> 115.5936262 | V192: 0 | W192: 28.2 | X192: 6.2 | Y192: =X192*P192/Q192 -> 9.360784314 | Z192: 1
A193: 192 | B193: 153 | C193: 53 | D193: 0 | E193: 0 | F193: 2 | G193: 0 | H193: 2/16 | I193: 1 | J193: 0 | K193: 1 | L193: 1 | M193: 0 | N193: 20 | O193: 0 | P193: 4.5 | Q193: 4.6 | R193: 251 | S193: 676.3055556 | T193: 1 | U193: =R193*100/P193/W193 -> 221.340388 | V193: 1 | W193: 25.2 | X193: 6.3 | Y193: =X193*P193/Q193 -> 6.163043478 | Z193: 0
A194: 193 | B194: 156 | C194: 55 | D194: 0 | E194: 1 | F194: 1.2 | G194: 0 | H194: 0/15 | I194: 0 | J194: 1 | K194: 1 | L194: 1 | M194: 0 | N194: 35 | O194: 1 | P194: 6.72 | Q194: 4.4 | R194: 314 | S194: 430.6285714 | T194: 0 | U194: =R194*100/P194/W194 -> 121.3667285 | V194: 0 | W194: 38.5 | X194: 6.4 | Y194: =X194*P194/Q194 -> 9.774545455 | Z194: 1
A195: 194 | B195: 156 | C195: 55 | D195: 0 | E195: 0 | F195: 2.3 | G195: 1 | H195: 19/20 | I195: 1 | J195: 0 | K195: 1 | L195: 1 | M195: 1 | N195: 60 | O195: 1 | P195: 8.26 | Q195: 4.09 | R195: 263 | S195: 1549.20438 | T195: 1 | U195: =R195*100/P195/W195 -> 232.410173 | V195: 1 | W195: 13.7 | X195: 5.2 | Y195: =X195*P195/Q195 -> 10.50171149 | Z195: 1
A196: 195 | B196: 156 | C196: 55 | D196: 0 | E196: 0 | F196: 1.5 | G196: 0 | H196: 0/12 | I196: 0 | J196: 0 | K196: 1 | L196: 1 | M196: 1 | N196: 8 | O196: 0 | P196: 6.2 | Q196: 3.9 | R196: 269 | S196: 581.4175439 | T196: 1 | U196: =R196*100/P196/W196 -> 152.2354273 | V196: 0 | W196: 28.5 | X196: 7.2 | Y196: =X196*P196/Q196 -> 11.44615385 | Z196: 1
A197: 196 | B197: 156 | C197: 55 | D197: 0 | E197: 0 | F197: 1.8 | G197: 0 | H197: 0/13 | I197: 0 | J197: 0 | K197: 1 | L197: 1 | M197: 0 | N197: 50 | O197: 1 | P197: 7.1 | Q197: 4.6 | R197: 306 | S197: 908.9620253 | T197: 1 | U197: =R197*100/P197/W197 -> 181.8505973 | V197: 1 | W197: 23.7 | X197: 4.4 | Y197: =X197*P197/Q197 -> 6.791304348 | Z197: 0
A198: 197 | B198: 156 | C198: 55 | D198: 0 | E198: 1 | F198: 3.5 | G198: 1 | H198: 1/15 | I198: 1 | J198: 1 | K198: 0 | L198: 0 | M198: 0 | N198: 80 | O198: 1 | P198: 7.2 | Q198: 4.5 | R198: 283 | S198: 1386.7 | T198: 1 | U198: =R198*100/P198/W198 -> 245.6597222 | V198: 1 | W198: 16 | X198: 4.6 | Y198: =X198*P198/Q198 -> 7.36 | Z198: 0
A199: 198 | B199: 163 | C199: 60 | D199: 0 | E199: 0 | F199: 1.5 | G199: 0 | H199: 0/16 | I199: 0 | J199: 0 | K199: 1 | L199: 1 | M199: 0 | N199: 15 | O199: 0 | P199: 3.5 | Q199: 3.7 | R199: 234 | S199: 397.6518987 | T199: 0 | U199: =R199*100/P199/W199 -> 211.5732369 | V199: 1 | W199: 31.6 | X199: 11 | Y199: =X199*P199/Q199 -> 10.40540541 | Z199: 1
A200: 199 | B200: 154 | C200: 53.5 | D200: 0 | E200: 1 | F200: 2 | G200: 0 | H200: 1/15 | I200: 1 | J200: 1 | K200: 1 | L200: 1 | M200: 1 | N200: 50 | O200: 1 | P200: 4.21 | Q200: 3.8 | R200: 143 | S200: 393.1052632 | T200: 0 | U200: =R200*100/P200/W200 -> 137.5171896 | V200: 0 | W200: 24.7 | X200: 5.9 | Y200: =X200*P200/Q200 -> 6.536578947 | Z200: 0
... 94 more rows

Sheet Sheet2
